Workbook

Sheet Topics
A1: Random Variables
A2: Discrete Random Variables
A3: Continuous Random Variables
A4: Discrete Probability Distributions
A5: Expected Value for a Discrete Random Variables
A6: Variance and Standard Deviation for a Discrete Random Variables
A7: Binomial Experiment
A8: Binomial Probabilities
A9: Expected Value and Variance and Standard Deviation for a Binomial Distribution
A10: POISSON Distibution
A11: Hypergeometric Distribution

Sheet PD(1)
A1: Experiment of tossing coin three times
A2: Steps in Experiment | B2: 3
A3: Outcomes Step 1 | B3: 2
A4: Outcomes Step 2 | B4: 2
A5: Outcomes Step 3 | B5: 2 | F5: Success =
A6: Total Experimental Outcomes | B6: =PRODUCT(B3:B5) -> 8 | C6: (Sample Points) | F6: Heads
A7: P(for each) = | B7: =1/B6 -> 0.125 | C7: Classical | F7: ="Notation for "&F6&" is "&LEFT(F6,1) -> Notation for Heads is H
F8: =LEFT(F6,1) -> H
A9: # SP | B9: Toss 1 | C9: Toss 2 | D9: Toss 3 | E9: Sample Space | F9: Probability of Sample Point | G9: # of heads for sample points
A10: 1 | B10: H | C10: H | D10: H | E10: ="("&B10&", "&C10&", "&D10&")" -> (H, H, H) | F10: =1/$B$6 -> 0.125 | G10: =COUNTIF(B10:D10,$F$8) -> 3
A11: 2 | B11: T | C11: H | D11: H | E11: ="("&B11&", "&C11&", "&D11&")" -> (T, H, H) | F11: 0.125 | G11: 2
A12: 3 | B12: H | C12: T | D12: H | E12: (H, T, H) | F12: 0.125 | G12: 2
A13: 4 | B13: H | C13: H | D13: T | E13: (H, H, T) | F13: 0.125 | G13: 2
A14: 5 | B14: T | C14: T | D14: H | E14: (T, T, H) | F14: 0.125 | G14: 1
A15: 6 | B15: T | C15: H | D15: T | E15: (T, H, T) | F15: 0.125 | G15: 1
A16: 7 | B16: H | C16: T | D16: T | E16: (H, T, T) | F16: 0.125 | G16: 1
A17: 8 | B17: T | C17: T | D17: T | E17: (T, T, T) | F17: 0.125 | G17: 0
F18: =SUM(F10:F17) -> 1
A19: x = Discrete Random Variable = | B19: # of heads in 3 flips
E20: Steps: | F20: #1 | G20: Define Random Variable
A21: X | B21: Frequency | C21: P(X) = f(x) | D21: Each f(x)>=0? | F21: #2 | G21: Build Frequency Distribution
A22: 0 | B22: =COUNTIF($G$10:$G$17,A22) -> 1 | C22: =B22/$B$26 -> 0.125 | D22: =C22>=0 -> TRUE | F22: #3 | G22: Calculate Relative Frequency - P(x) = f(x)
A23: 1 | B23: =COUNTIF($G$10:$G$17,A23) -> 3 | C23: =B23/$B$26 -> 0.375 | D23: =C23>=0 -> TRUE | F23: #4 | G23: Check Requirement #1: f(x) >= 0
A24: 2 | B24: =COUNTIF($G$10:$G$17,A24) -> 3 | C24: =B24/$B$26 -> 0.375 | D24: =C24>=0 -> TRUE | F24: #5 | G24: Check Requirement #2: Σf(x) = 1
A25: 3 | B25: =COUNTIF($G$10:$G$17,A25) -> 1 | C25: =B25/$B$26 -> 0.125 | D25: =C25>=0 -> TRUE | F25: #6 | G25: Create a Column Chart for a Discrete Variable (Columns do not touch)
B26: =SUM(B22:B25) -> 8 | C26: =SUM(C22:C25) -> 1 | F26: #7 | G26: Make predictions
A28: P(X =1)
A29: P(X > = 2)
A30: P(x = 0 or x = 3) | C30: =C22+C25 -> 0.25
A31: P(X not 2) | C31: =1-C24 -> 0.625
A34: .

Sheet PD(1)an
A1: Experiment of tossing coin three times
A2: Steps in Experiment | B2: 3
A3: Outcomes Step 1 | B3: 2
A4: Outcomes Step 2 | B4: 2
A5: Outcomes Step 3 | B5: 2 | F5: Success =
A6: Total Experimental Outcomes | B6: =PRODUCT(B3:B5) -> 8 | C6: (Sample Points) | F6: Heads
A7: P(for each) = | B7: =1/B6 -> 0.125 | C7: Classical | F7: ="Notation for "&F6&" is "&LEFT(F6,1) -> Notation for Heads is H
F8: =LEFT(F6,1) -> H
A9: # SP | B9: Toss 1 | C9: Toss 2 | D9: Toss 3 | E9: Sample Space | F9: Probability of Sample Point | G9: # of heads for sample points
A10: 1 | B10: H | C10: H | D10: H | E10: ="("&B10&", "&C10&", "&D10&")" -> (H, H, H) | F10: =1/$B$6 -> 0.125 | G10: =COUNTIF(B10:D10,$F$8) -> 3
A11: 2 | B11: T | C11: H | D11: H | E11: ="("&B11&", "&C11&", "&D11&")" -> (T, H, H) | F11: 0.125 | G11: 2
A12: 3 | B12: H | C12: T | D12: H | E12: (H, T, H) | F12: 0.125 | G12: 2
A13: 4 | B13: H | C13: H | D13: T | E13: (H, H, T) | F13: 0.125 | G13: 2
A14: 5 | B14: T | C14: T | D14: H | E14: (T, T, H) | F14: 0.125 | G14: 1
A15: 6 | B15: T | C15: H | D15: T | E15: (T, H, T) | F15: 0.125 | G15: 1
A16: 7 | B16: H | C16: T | D16: T | E16: (H, T, T) | F16: 0.125 | G16: 1
A17: 8 | B17: T | C17: T | D17: T | E17: (T, T, T) | F17: 0.125 | G17: 0
F18: =SUM(F10:F17) -> 1
A19: x = Discrete Random Variable = | B19: # of heads in 3 flips
E20: Steps: | F20: #1 | G20: Define Random Variable
A21: X | B21: Frequency | C21: P(X) = f(x) | D21: Each f(x)>=0? | F21: #2 | G21: Build Frequency Distribution
A22: 0 | B22: =COUNTIF($G$10:$G$17,A22) -> 1 | C22: =B22/$B$26 -> 0.125 | D22: =C22>=0 -> TRUE | F22: #3 | G22: Calculate Relative Frequency - P(x) = f(x)
A23: 1 | B23: =COUNTIF($G$10:$G$17,A23) -> 3 | C23: =B23/$B$26 -> 0.375 | D23: =C23>=0 -> TRUE | F23: #4 | G23: Check Requirement #1: f(x) >= 0
A24: 2 | B24: =COUNTIF($G$10:$G$17,A24) -> 3 | C24: =B24/$B$26 -> 0.375 | D24: =C24>=0 -> TRUE | F24: #5 | G24: Check Requirement #2: Σf(x) = 1
A25: 3 | B25: =COUNTIF($G$10:$G$17,A25) -> 1 | C25: =B25/$B$26 -> 0.125 | D25: =C25>=0 -> TRUE | F25: #6 | G25: Create a Column Chart for a Discrete Variable (Columns do not touch)
B26: =SUM(B22:B25) -> 8 | C26: =SUM(C22:C25) -> 1 | F26: #7 | G26: Make predictions
A28: P(X =1) | B28: =C22 -> 0.125
A29: P(X > = 2) | B29: =SUM(C24:C25) -> 0.5
A30: P(x = 0 or x = 3) | B30: =SUM(C22,C25) -> 0.25 | C30: =C22+C25 -> 0.25
A31: P(X not 2) | B31: =SUM(C22:C23,C25) -> 0.625 | C31: =1-C24 -> 0.625

Sheet PD(2)
A1: Over last 20 days the number of operating rooms used at TG hospital were: | E1: Steps to Build Discrete Probability Distribution:
A2: On 3 days only 1 were used | E2: #1 | F2: Define Random Variable
A3: On 5 days 2 were used | E3: #2 | F3: Build Frequency Distribution
A4: On 8 days 3 were used | E4: #3 | F4: Calculate Relative Frequency - P(x) = f(x)
A5: On 4 days all (4) were used | E5: #4 | F5: Check Requirement #1: f(x) >= 0
A6: Create a Probability Distribution that can be used to make predictions in the future. | E6: #5 | F6: Check Requirement #2: Σf(x) = 1
E7: #6 | F7: Create a Column Chart for a Discrete Variable (Columns do not touch)
A8: Discrete Random Variable = x = | B8: # of operating rooms used in 1 day | E8: #7 | F8: Make predictions
A10: Frequency (# of days) | B10: x = # operating rooms in use for 1 day | C10: Relative Frequency P(x) = f(x) = Probability | D10: Is each f(x) >= 0? | E10: P(x) | F10: f(x)
A11: 3 | B11: 1 | E11: =LEFT(E$10,1)&"("&$B11&")" -> P(1) | F11: f(1)
A12: 5 | B12: 2 | E12: P(2) | F12: f(2)
A13: 8 | B13: 3 | E13: P(3) | F13: f(3)
A14: 4 | B14: 4 | E14: P(4) | F14: f(4)
J16: Discrete Probability Charts don't have columns that touch.
A17: Reason we do the whole distribution? Because then it is easy to make predictions
G18: check
A19: 2 | B19: ="<="&A19 -> <=2 | C19: ="P(x"&B19&")" -> P(x<=2) | D19: f(1) + f(2) | I19: SUMIF function:
A20: 2 | B20: ="<"&A20 -> <2 | C20: ="P(x"&B20&")" -> P(x<2) | D20: f(1) | I20: range = range with all criteria
A21: 2 | B21: =">="&A21 -> >=2 | C21: ="P(x"&B21&")" -> P(x>=2) | D21: f(2) + f(3) + f(4) | I21: criteria = criteria such as 2, <=2, >=2, >2
A22: 2 | B22: =">"&A22 -> >2 | C22: ="P(x"&B22&")" -> P(x>2) | D22: f(3) + f(4) | I22: sum_range = range with values to add
I23: For more about this function, see this video:
I24: Excel Magic Trick #203: SUMIF function formula 21 Examples

Sheet PD(2)an
A1: Over last 20 days the number of operating rooms used at TG hospital were: | E1: Steps to Build Discrete Probability Distribution:
A2: On 3 days only 1 were used | E2: #1 | F2: Define Random Variable
A3: On 5 days 2 were used | E3: #2 | F3: Build Frequency Distribution
A4: On 8 days 3 were used | E4: #3 | F4: Calculate Relative Frequency - P(x) = f(x)
A5: On 4 days all (4) were used | E5: #4 | F5: Check Requirement #1: f(x) >= 0
A6: Create a Probability Distribution that can be used to make predictions in the future. | E6: #5 | F6: Check Requirement #2: Σf(x) = 1
E7: #6 | F7: Create a Column Chart for a Discrete Variable (Columns do not touch)
A8: Discrete Random Variable = x = | B8: X = # of Op. Rooms used in 1 day | E8: #7 | F8: Make predictions
A10: Frequency (# of days) | B10: x = # operating rooms in use for 1 day | C10: Relative Frequency P(x) = f(x) = Probability | D10: Is each f(x) >= 0? | E10: P(x) | F10: f(x)
A11: 3 | B11: 1 | C11: =A11/$A$15 -> 0.15 | D11: =C11>=0 -> TRUE | E11: =LEFT(E$10,1)&"("&$B11&")" -> P(1) | F11: f(1)
A12: 5 | B12: 2 | C12: =A12/$A$15 -> 0.25 | D12: =C12>=0 -> TRUE | E12: P(2) | F12: f(2)
A13: 8 | B13: 3 | C13: =A13/$A$15 -> 0.4 | D13: =C13>=0 -> TRUE | E13: P(3) | F13: f(3)
A14: 4 | B14: 4 | C14: =A14/$A$15 -> 0.2 | D14: =C14>=0 -> TRUE | E14: P(4) | F14: f(4)
A15: =SUM(A11:A14) -> 20 | C15: =SUM(C11:C14) -> 1
J16: Discrete Probability Charts don't have columns that touch.
A17: Reason we do the whole distribution? Because then it is easy to make predictions
G18: check
A19: 2 | B19: ="<="&A19 -> <=2 | C19: ="P(x"&B19&")" -> P(x<=2) | D19: f(1) + f(2) | E19: =SUM(C11:C12) -> 0.4 | G19: =SUMIF($B$11:$B$14,B19,$C$11:$C$14) -> 0.4 | I19: SUMIF function:
A20: 2 | B20: ="<"&A20 -> <2 | C20: ="P(x"&B20&")" -> P(x<2) | D20: f(1) | E20: =SUM(C11) -> 0.15 | G20: =SUMIF($B$11:$B$14,B20,$C$11:$C$14) -> 0.15 | I20: range = range with all criteria
A21: 2 | B21: =">="&A21 -> >=2 | C21: ="P(x"&B21&")" -> P(x>=2) | D21: f(2) + f(3) + f(4) | E21: =SUM(C12:C14) -> 0.85 | G21: =SUMIF($B$11:$B$14,B21,$C$11:$C$14) -> 0.85 | I21: criteria = criteria such as 2, <=2, >=2, >2
A22: 2 | B22: =">"&A22 -> >2 | C22: ="P(x"&B22&")" -> P(x>2) | D22: f(3) + f(4) | E22: =SUM(C13:C14) -> 0.6 | G22: =SUMIF($B$11:$B$14,B22,$C$11:$C$14) -> 0.6 | I22: sum_range = range with values to add
I23: For more about this function, see this video:
I24: Excel Magic Trick #203: SUMIF function formula 21 Examples

Sheet PD(3)
A1: Job satisfaction score | B1: IS Senior Executives | C1: Is each f(x) >= 0? | D1: IS Middle Executives | E1: Is each f(x) >= 0?
A2: 1 | B2: 0.05 | D2: 0.04
A3: 2 | B3: 0.09 | D3: 0.1
A4: 3 | B4: 0.03 | D4: 0.12
A5: 4 | B5: 0.42 | D5: 0.46
A6: 5 | B6: 0.41 | D6: 0.28

Sheet PD(3)an
A1: Job satisfaction score | B1: IS Senior Executives | C1: Is each f(x) >= 0? | D1: IS Middle Executives | E1: Is each f(x) >= 0?
A2: 1 | B2: 0.05 | C2: =B2>=0 -> TRUE | D2: 0.04 | E2: TRUE
A3: 2 | B3: 0.09 | C3: TRUE | D3: 0.1 | E3: TRUE
A4: 3 | B4: 0.03 | C4: TRUE | D4: 0.12 | E4: TRUE
A5: 4 | B5: 0.42 | C5: TRUE | D5: 0.46 | E5: TRUE
A6: 5 | B6: 0.41 | C6: TRUE | D6: 0.28 | E6: TRUE
B7: =SUM(B2:B6) -> 1 | D7: =SUM(D2:D6) -> 1

Sheet EVSD(1)
A1: Mean and Standard Deviation from Raw Data | E1: Mean and Standard Deviation for Discrete Probability Distribution
E2: x = # operating rooms in use for 1 day | F2: Frequency (# of days) | G2: Relative Frequency P(x) = f(x) = Probability | H2: E(x) =X*f(x) | I2: X - mu | J2: (X-mu)^2 | K2: =J2&"*f(x)" -> (X-mu)^2*f(x)
A3: Mean | E3: 1 | F3: =COUNTIF($A$7:$A$26,E3) -> 3 | G3: =F3/$F$7 -> 0.15
A4: STDEV.S | E4: 2 | F4: =COUNTIF($A$7:$A$26,E4) -> 5 | G4: =F4/$F$7 -> 0.25
A5: STDEV.P | E5: 3 | F5: =COUNTIF($A$7:$A$26,E5) -> 8 | G5: =F5/$F$7 -> 0.4
A6: Raw Data = Xi | B6: X - mu | C6: (X-mu)^2 | E6: 4 | F6: =COUNTIF($A$7:$A$26,E6) -> 4 | G6: =F6/$F$7 -> 0.2
A7: 1 | F7: =SUM(F3:F6) -> 20 | G7: =SUM(G3:G6) -> 1 | J7: Var
A8: 1 | I8: Not equal to zero because you are not using all the data points | J8: SD
A9: 1 | E9: E(x) | F9: Σx*f(x)
A10: 2 | E10: SD of Discrete Random Variable | F10: sqrt(Σ(x-mean)^2*f(x))
A11: 2
A12: 2
A13: 2 | F13: Weight mean
A14: 2
A15: 3
A16: 3
A17: 3
A18: 3
A19: 3
A20: 3
A21: 3
A22: 3
A23: 4
A24: 4
A25: 4
A26: 4
C27: Must Equal Zero
B28: Var
B29: sd
B30: Count

Sheet EVSD(1)an
A1: Mean and Standard Deviation from Raw Data | E1: Mean and Standard Deviation for Discrete Probability Distribution
E2: x = # operating rooms in use for 1 day | F2: Frequency (# of days) | G2: Relative Frequency P(x) = f(x) = Probability | H2: E(x) =X*f(x) | I2: X - mu | J2: (X-mu)^2 | K2: =J2&"*f(x)" -> (X-mu)^2*f(x)
A3: Mean | B3: =AVERAGE(A7:A26) -> 2.65 | E3: 1 | F3: =COUNTIF($A$7:$A$26,E3) -> 3 | G3: =F3/$F$7 -> 0.15 | H3: =E3*G3 -> 0.15 | I3: =E3-$G$9 -> -1.65 | J3: =I3^2 -> 2.7225 | K3: =J3*G3 -> 0.408375
A4: STDEV.S | B4: =_xlfn.STDEV.S(A7:A26) -> 0.9880869342 | E4: 2 | F4: =COUNTIF($A$7:$A$26,E4) -> 5 | G4: =F4/$F$7 -> 0.25 | H4: =E4*G4 -> 0.5 | I4: =E4-$G$9 -> -0.65 | J4: =I4^2 -> 0.4225 | K4: =J4*G4 -> 0.105625
A5: STDEV.P | B5: =_xlfn.STDEV.P(A7:A26) -> 0.9630680142 | E5: 3 | F5: =COUNTIF($A$7:$A$26,E5) -> 8 | G5: =F5/$F$7 -> 0.4 | H5: =E5*G5 -> 1.2 | I5: 0.35 | J5: 0.1225 | K5: 0.049
A6: Raw Data = Xi | B6: X - mu | C6: (X-mu)^2 | E6: 4 | F6: =COUNTIF($A$7:$A$26,E6) -> 4 | G6: =F6/$F$7 -> 0.2 | H6: 0.8 | I6: 1.35 | J6: 1.8225 | K6: 0.3645
A7: 1 | B7: =A7-$B$3 -> -1.65 | C7: =B7^2 -> 2.7225 | F7: =SUM(F3:F6) -> 20 | G7: =SUM(G3:G6) -> 1 | H7: =SUM(H3:H6) -> 2.65 | I7: =SUM(I3:I6) -> -0.6 | J7: Var | K7: =SUM(K3:K6) -> 0.9275
A8: 1 | B8: =A8-$B$3 -> -1.65 | C8: =B8^2 -> 2.7225 | I8: Not equal to zero because you are not using all the data points | J8: SD | K8: =SQRT(K7) -> 0.9630680142
A9: 1 | B9: -1.65 | C9: 2.7225 | E9: E(x) | F9: Σx*f(x) | G9: =SUMPRODUCT(E3:E6,G3:G6) -> 2.65
A10: 2 | B10: -0.65 | C10: 0.4225 | E10: SD of Discrete Random Variable | F10: sqrt(Σ(x-mean)^2*f(x)) | G10: =SQRT(SUMPRODUCT((E3:E6-G9)^2,G3:G6)) -> 0.9630680142
A11: 2 | B11: -0.65 | C11: 0.4225
A12: 2 | B12: -0.65 | C12: 0.4225
A13: 2 | B13: -0.65 | C13: 0.4225 | F13: Weight mean | G13: =SUMPRODUCT(E3:E6,F3:F6)/F7 -> 2.65
A14: 2 | B14: -0.65 | C14: 0.4225
A15: 3 | B15: 0.35 | C15: 0.1225
A16: 3 | B16: 0.35 | C16: 0.1225
A17: 3 | B17: 0.35 | C17: 0.1225
A18: 3 | B18: 0.35 | C18: 0.1225
A19: 3 | B19: 0.35 | C19: 0.1225
A20: 3 | B20: 0.35 | C20: 0.1225
A21: 3 | B21: 0.35 | C21: 0.1225
A22: 3 | B22: 0.35 | C22: 0.1225
A23: 4 | B23: 1.35 | C23: 1.8225
A24: 4 | B24: 1.35 | C24: 1.8225
A25: 4 | B25: 1.35 | C25: 1.8225
A26: 4 | B26: 1.35 | C26: 1.8225
B27: =SUM(B7:B26) -> -3.996802889e-15 | C27: Must Equal Zero
B28: Var | C28: =SUM(C7:C26)/C30 -> 0.9275
B29: sd | C29: =SQRT(C28) -> 0.9630680142
B30: Count | C30: =COUNT(A7:A26) -> 20

Sheet EVSD(2)
A1: Unit Demand = x | B1: Prob = f(x) | D1: (X - Mean)^2 | F1: Mean
A2: 500 | B2: 0.1 | D2: =(A2-$F$2)^2 -> 84100 | F2: =SUMPRODUCT(A2:A8,B2:B8) -> 790
A3: 600 | B3: 0.15 | D3: 36100
A4: 700 | B4: 0.15 | D4: 8100
A5: 800 | B5: 0.2 | D5: 100
A6: 900 | B6: 0.2 | D6: 12100
A7: 1000 | B7: 0.15 | D7: 44100
A8: 1100 | B8: 0.05 | D8: 96100
A11: Mean = Expected Value | C11: = monthly order quantity
A12: SD | D12: =SQRT(SUMPRODUCT(B2:B8,D2:D8)) -> 170
A14: Price per unit | B14: 125
A15: Cost per unit | B15: 60
A16: Assumed Units sold | B16: 500
A17: Sales
A18: Expenses
A19: Gross Profit
B23: All Values
B24: 500
B25: 500
B26: 500
B27: 500
B28: 500
B29: 500
B30: 500
B31: 500
B32: 500
B33: 500
B34: 600
B35: 600
B36: 600
B37: 600
B38: 600
B39: 600
B40: 600
B41: 600
B42: 600
B43: 600
B44: 600
B45: 600
B46: 600
B47: 600
B48: 600
B49: 700
B50: 700
B51: 700
B52: 700
B53: 700
B54: 700
B55: 700
B56: 700
B57: 700
B58: 700
B59: 700
B60: 700
B61: 700
B62: 700
B63: 700
B64: 800
B65: 800
B66: 800
B67: 800
B68: 800
B69: 800
B70: 800
B71: 800
B72: 800
B73: 800
B74: 800
B75: 800
B76: 800
B77: 800
B78: 800
B79: 800
B80: 800
B81: 800
B82: 800
B83: 800
B84: 900
B85: 900
B86: 900
B87: 900
B88: 900
B89: 900
B90: 900
B91: 900
B92: 900
B93: 900
B94: 900
B95: 900
B96: 900
B97: 900
B98: 900
B99: 900
B100: 900
B101: 900
B102: 900
B103: 900
B104: 1000
B105: 1000
B106: 1000
B107: 1000
B108: 1000
B109: 1000
B110: 1000
B111: 1000
B112: 1000
B113: 1000
B114: 1000
B115: 1000
B116: 1000
B117: 1000
B118: 1000
B119: 1100
B120: 1100
B121: 1100
B122: 1100
B123: 1100
A124: VAR.P | B124: =_xlfn.VAR.P(B24:B123) -> 28900
A125: STDEV.S | B125: =_xlfn.STDEV.P(B24:B123) -> 170

Sheet EVSD(2)an
A1: Unit Demand = x | B1: Prob = f(x) | D1: (X - Mean)^2 | F1: Mean
A2: 500 | B2: 0.1 | D2: =(A2-$F$2)^2 -> 84100 | F2: =SUMPRODUCT(A2:A8,B2:B8) -> 790
A3: 600 | B3: 0.15 | D3: 36100
A4: 700 | B4: 0.15 | D4: 8100
A5: 800 | B5: 0.2 | D5: 100
A6: 900 | B6: 0.2 | D6: 12100
A7: 1000 | B7: 0.15 | D7: 44100
A8: 1100 | B8: 0.05 | D8: 96100
B9: =SUM(B2:B8) -> 1
A11: Mean = Expected Value | B11: =SUMPRODUCT(A2:A8,B2:B8) -> 790 | C11: = monthly order quantity
A12: SD | B12: =SQRT(SUMPRODUCT((A2:A8-B11)^2,B2:B8)) -> 170 | D12: =SQRT(SUMPRODUCT(B2:B8,D2:D8)) -> 170
A14: Price per unit | B14: 125
A15: Cost per unit | B15: 60
A16: Assumed Units sold | B16: 500
A17: Sales | B17: =B16*B14 -> 62500
A18: Expenses | B18: =B15*B11 -> 47400
A19: Gross Profit | B19: =B17-B18 -> 15100
B23: All Values
B24: 500
B25: 500
B26: 500
B27: 500
B28: 500
B29: 500
B30: 500
B31: 500
B32: 500
B33: 500
B34: 600
B35: 600
B36: 600
B37: 600
B38: 600
B39: 600
B40: 600
B41: 600
B42: 600
B43: 600
B44: 600
B45: 600
B46: 600
B47: 600
B48: 600
B49: 700
B50: 700
B51: 700
B52: 700
B53: 700
B54: 700
B55: 700
B56: 700
B57: 700
B58: 700
B59: 700
B60: 700
B61: 700
B62: 700
B63: 700
B64: 800
B65: 800
B66: 800
B67: 800
B68: 800
B69: 800
B70: 800
B71: 800
B72: 800
B73: 800
B74: 800
B75: 800
B76: 800
B77: 800
B78: 800
B79: 800
B80: 800
B81: 800
B82: 800
B83: 800
B84: 900
B85: 900
B86: 900
B87: 900
B88: 900
B89: 900
B90: 900
B91: 900
B92: 900
B93: 900
B94: 900
B95: 900
B96: 900
B97: 900
B98: 900
B99: 900
B100: 900
B101: 900
B102: 900
B103: 900
B104: 1000
B105: 1000
B106: 1000
B107: 1000
B108: 1000
B109: 1000
B110: 1000
B111: 1000
B112: 1000
B113: 1000
B114: 1000
B115: 1000
B116: 1000
B117: 1000
B118: 1000
B119: 1100
B120: 1100
B121: 1100
B122: 1100
B123: 1100
A124: VAR.P | B124: =_xlfn.VAR.P(B24:B123) -> 28900
A125: STDEV.S | B125: =_xlfn.STDEV.P(B24:B123) -> 170

Sheet EVSD(3)
A1: State of Economy | B1: Prob. Of State of Economy | C1: Stock A Return | D1: Stock B Return | E1: Stock C Return
A2: Boom | B2: 0.15 | C2: 0.15 | D2: 0.25 | E2: 0.11
A3: Normal | B3: =1-SUM(B2,B4) -> 0.3 | C3: 0.07 | D3: 0.13 | E3: 0.1
A4: Bust | B4: 0.55 | C4: -0.02 | D4: -0.135 | E4: 0.03
B5: E(Ri)
A6: Sd = Proxy for Risk | B6: Standard Deviation
B7: CV = SD/Mean
B8: Mean/SD

Sheet EVSD(3)an
A1: State of Economy | B1: Prob. Of State of Economy | C1: Stock A Return | D1: Stock B Return | E1: Stock C Return
A2: Boom | B2: 0.15 | C2: 0.15 | D2: 0.25 | E2: 0.11
A3: Normal | B3: =1-SUM(B2,B4) -> 0.3 | C3: 0.07 | D3: 0.13 | E3: 0.1
A4: Bust | B4: 0.55 | C4: -0.02 | D4: -0.135 | E4: 0.03
B5: E(Ri) | C5: =SUMPRODUCT($B$2:$B$4,C2:C4) -> 0.0325 | D5: =SUMPRODUCT($B$2:$B$4,D2:D4) -> 0.00225 | E5: 0.063
A6: Sd = Proxy for Risk | B6: Standard Deviation | C6: =SQRT(SUMPRODUCT((C2:C4-C5)^2,$B$2:$B$4)) -> 0.06331469024 | D6: =SQRT(SUMPRODUCT((D2:D4-D5)^2,$B$2:$B$4)) -> 0.1564087194 | E6: 0.03661966685
B7: CV = SD/Mean | C7: =C6/C5 -> 1.948144315 | D7: =D6/D5 -> 69.51498639 | E7: 0.5812645531
B8: Mean/SD | C8: =C5/C6 -> 0.5133089948 | D8: =D5/D6 -> 0.01438538727 | E8: 1.720387033

Sheet BDPD
A1: pi = | B1: 0.2
A2: 1 - pi = | B2: =1-B1 -> 0.8
A3: n = | B3: 4
A4: Fixed # of Trials? | B4: Yes
A5: Each Trial Independent? | B5: Yes
A6: Success is? | B6: Sale | C6: S
A7: Fail is? | B7: No Sale | C7: NS
A8: Success or fail each trial? | B8: Yes
A9: pi the same each Trial? | B9: Yes
A10: Sample Space = | B10: =2^B3 -> 16
A12: ="Build Discrete Probability Distribution with "&A3&" "&B3&", "&A1&" "&B1 -> Build Discrete Probability Distribution with n = 4, pi = 0.2
A13: Possible Outcomes | B13: Attempted Sale | F13: # of Sales | G13: Probability associated with each attempt | K13: Probability of Occurrence Calculation | L13: Probability of Occurrence | N13: # of Sales (Random Variable X) | O13: P(x) | P13: P(x)
B14: 1st | C14: 2nd | D14: 3rd | E14: 4th | G14: 1st | H14: 2nd | I14: 3rd | J14: 4th
A15: 1 | B15: S | C15: S | D15: S | E15: S | F15: =COUNTIF(B15:E15,$C$6) -> 4 | G15: =IF(B15=$C$6,$B$1,$B$2) -> 0.2 | H15: 0.2 | I15: 0.2 | J15: 0.2 | K15: =G15&"*"&H15&"*"&I15&"*"&J15&" =" -> 0.2*0.2*0.2*0.2 = | L15: =PRODUCT(G15:J15) -> 0.0016 | N15: 0 | O15: ="P("&N15&") =" -> P(0) = | P15: =SUMIF($F$15:$F$30,N15,$L$15:$L$30) -> 0.4096
A16: 2 | B16: S | C16: S | D16: S | E16: NS | F16: 3 | G16: 0.2 | H16: 0.2 | I16: 0.2 | J16: 0.8 | K16: 0.2*0.2*0.2*0.8 = | L16: 0.0064 | N16: 1 | O16: ="P("&N16&") =" -> P(1) = | P16: =SUMIF($F$15:$F$30,N16,$L$15:$L$30) -> 0.4096
A17: 3 | B17: S | C17: S | D17: NS | E17: S | F17: 3 | G17: 0.2 | H17: 0.2 | I17: 0.8 | J17: 0.2 | K17: 0.2*0.2*0.8*0.2 = | L17: 0.0064 | N17: 2 | O17: ="P("&N17&") =" -> P(2) = | P17: =SUMIF($F$15:$F$30,N17,$L$15:$L$30) -> 0.1536
A18: 4 | B18: S | C18: NS | D18: S | E18: S | F18: 3 | G18: 0.2 | H18: 0.8 | I18: 0.2 | J18: 0.2 | K18: 0.2*0.8*0.2*0.2 = | L18: 0.0064 | N18: 3 | O18: ="P("&N18&") =" -> P(3) = | P18: =SUMIF($F$15:$F$30,N18,$L$15:$L$30) -> 0.0256
A19: 5 | B19: NS | C19: S | D19: S | E19: S | F19: 3 | G19: 0.8 | H19: 0.2 | I19: 0.2 | J19: 0.2 | K19: 0.8*0.2*0.2*0.2 = | L19: 0.0064 | N19: 4 | O19: ="P("&N19&") =" -> P(4) = | P19: =SUMIF($F$15:$F$30,N19,$L$15:$L$30) -> 0.0016
A20: 6 | B20: S | C20: S | D20: NS | E20: NS | F20: 2 | G20: 0.2 | H20: 0.2 | I20: 0.8 | J20: 0.8 | K20: 0.2*0.2*0.8*0.8 = | L20: 0.0256 | P20: =SUM(P15:P19) -> 1
A21: 7 | B21: S | C21: NS | D21: NS | E21: S | F21: 2 | G21: 0.2 | H21: 0.8 | I21: 0.8 | J21: 0.2 | K21: 0.2*0.8*0.8*0.2 = | L21: 0.0256
A22: 8 | B22: NS | C22: NS | D22: S | E22: S | F22: 2 | G22: 0.8 | H22: 0.8 | I22: 0.2 | J22: 0.2 | K22: 0.8*0.8*0.2*0.2 = | L22: 0.0256 | O22: E(x) | P22: =SUMPRODUCT(N15:N19,P15:P19) -> 0.8 | Q22: =B3*B1 -> 0.8
A23: 9 | B23: S | C23: NS | D23: S | E23: NS | F23: 2 | G23: 0.2 | H23: 0.8 | I23: 0.2 | J23: 0.8 | K23: 0.2*0.8*0.2*0.8 = | L23: 0.0256 | O23: SD | P23: =SQRT(SUMPRODUCT((N15:N19-P22)^2,P15:P19)) -> 0.8 | Q23: =SQRT(Q22*(1-B1)) -> 0.8
A24: 10 | B24: NS | C24: S | D24: NS | E24: S | F24: 2 | G24: 0.8 | H24: 0.2 | I24: 0.8 | J24: 0.2 | K24: 0.8*0.2*0.8*0.2 = | L24: 0.0256
A25: 11 | B25: NS | C25: S | D25: S | E25: NS | F25: 2 | G25: 0.8 | H25: 0.2 | I25: 0.2 | J25: 0.8 | K25: 0.8*0.2*0.2*0.8 = | L25: 0.0256
A26: 12 | B26: S | C26: NS | D26: NS | E26: NS | F26: 1 | G26: 0.2 | H26: 0.8 | I26: 0.8 | J26: 0.8 | K26: 0.2*0.8*0.8*0.8 = | L26: 0.1024
A27: 13 | B27: NS | C27: S | D27: NS | E27: NS | F27: 1 | G27: 0.8 | H27: 0.2 | I27: 0.8 | J27: 0.8 | K27: 0.8*0.2*0.8*0.8 = | L27: 0.1024
A28: 14 | B28: NS | C28: NS | D28: S | E28: NS | F28: 1 | G28: 0.8 | H28: 0.8 | I28: 0.2 | J28: 0.8 | K28: 0.8*0.8*0.2*0.8 = | L28: 0.1024
A29: 15 | B29: NS | C29: NS | D29: NS | E29: S | F29: 1 | G29: 0.8 | H29: 0.8 | I29: 0.8 | J29: 0.2 | K29: 0.8*0.8*0.8*0.2 = | L29: 0.1024
A30: 16 | B30: NS | C30: NS | D30: NS | E30: NS | F30: 0 | G30: 0.8 | H30: 0.8 | I30: 0.8 | J30: 0.8 | K30: 0.8*0.8*0.8*0.8 = | L30: 0.4096

Sheet B(1)
A1: An insurance agent has appointments with 4 clients tomorrow. From past data, the chance of making a sale is 1 in 5. What is likelihood that she will sell 3 policies in 4 tries?
A2: Binomial Experiment 4 Requirements:
A3: 1 | B3: Experiment consists of a sequence of n identical trials. Random Variable counts the number of successes in a Fixed number of trials, n.
A4: 2 | B4: Only 2 outcomes are possible on each indetical trial. Success or Failure.
A5: 3 | B5: Probability of Success = p = (π "pi"). Probability of Failure = 1-p. Probability remains the same on each trial.
A6: 4 | B6: The trials are independent (one does not affact the next)
A8: 1 | B8: Fixed # of Identical Trials = n | D8: Yes
A9: 2 | B9: Each trial only results in S or F | D9: Yes
A10: 3 | B10: p remains the same for each trial | D10: Yes
A11: 4 | B11: All events are independent | D11: Yes
B13: An insurance agent has appointments with 4 clients tomorrow. From past data, the chance of making a sale is 1 in 5. What is likelihood that she will sell 3 policies in 4 tries?
B14: Variables
C15: Success | F15: =$D$18 -> 0
C16: Failure | F16: =$D$18 -> 0
C17: n | F17: =$D$18 -> 0
C18: x | F18: =$D$18 -> 0
C19: p (π) | F19: =$D$18 -> 0
C21: X | D21: P(x) = f(x) | G21: =B19&" = "&C19&" = "&D19&CHAR(10)&B8&" = "&D17 -> = p (π) = Fixed # of Identical Trials = n =
C22: 0 | G22: P(x) = f(x) | H22: P(x) = f(x) | I22: SUM
C23: 1 | G23: ="P(x = "&F15&")" -> P(x = 0) | K23: Success = s
C24: 2 | G24: ="P(x <= "&F19&")" -> P(x <= 0) | K24: #S.P. = COMBIN | N24: An insurance agent has appointments with 4 clients tomorrow. From past data, the chance of making a sale is 1 in 5. What is likelihood that she will sell 3 policies in 4 tries? | U24: Define P(Event) = Sum of Probabilities of Sample Points in Event
C25: 3 | G25: ="P(x > "&F17&")" -> P(x > 0) | K25: x = # policies Sold
C26: 4 | G26: ="P(x >= "&F16&")" -> P(x >= 0) | K26: n = Trials or Steps
G27: ="P(x < "&F18&")" -> P(x < 0) | J27: s | K27: p = Prob of success
B28: Chart Title | J28: ns | K28: (1-p) = Not a sale
B29: ="Binomial Distribution n = "&D17&", p = "&D19 -> Binomial Distribution n = , p = | K29: # S.P. | L29: C1 | M29: C2 | N29: C3 | O29: C4 | P29: P1 | Q29: P2 | R29: P3 | S29: P4 | T29: P(S.P.) | U29: Multiply
K30: 1 | L30: ns | M30: s | N30: s | O30: s | P30: =VLOOKUP(L30,$J$27:$L$28,3,0) -> 0 | Q30: 0 | R30: 0 | S30: 0
K31: 2 | L31: s | M31: ns | N31: s | O31: s | P31: 0 | Q31: 0 | R31: 0 | S31: 0
K32: 3 | L32: s | M32: s | N32: ns | O32: s | P32: 0 | Q32: 0 | R32: 0 | S32: 0
K33: 4 | L33: s | M33: s | N33: s | O33: ns | P33: 0 | Q33: 0 | R33: 0 | S33: 0
U34: Add
H41: be sure to scroll up

Sheet B(1)an
A1: An insurance agent has appointments with 4 clients tomorrow. From past data, the chance of making a sale is 1 in 5. What is likelihood that she will sell 3 policies in 4 tries?
A2: Binomial Experiment 4 Requirements:
A3: 1 | B3: Experiment consists of a sequence of n identical trials. Random Variable counts the number of successes in a Fixed number of trials, n.
A4: 2 | B4: Only 2 outcomes are possible on each indetical trial. Success or Failure.
A5: 3 | B5: Probability of Success = p = (π "pi"). Probability of Failure = 1-p. Probability remains the same on each trial.
A6: 4 | B6: The trials are independent (one does not affact the next)
A8: 1 | B8: Fixed # of Identical Trials = n | D8: Yes | G8: Nominal Variable, Since 2 options use word "bi"
A9: 2 | B9: Each trial only results in S or F | D9: Yes | G9: Sale
A10: 3 | B10: p remains the same for each trial | D10: Yes | G10: Not Sale
A11: 4 | B11: All events are independent | D11: Yes
B13: An insurance agent has appointments with 4 clients tomorrow. From past data, the chance of making a sale is 1 in 5. What is likelihood that she will sell 3 policies in 4 tries?
B14: Variables
B15: Make a sale | C15: Success | D15: s | F15: =$D$18 -> 3
B16: Not Make a sale | C16: Failure | D16: ns | F16: =$D$18 -> 3
B17: # of Fixed Trials = Steps = Attempts at Sale = Appointments | C17: n | D17: 4 | F17: =$D$18 -> 3
B18: Random Discrete Variable = # of sales in 4 tries | C18: x | D18: 3 | F18: =$D$18 -> 3
B19: Prob of Success (remains the same of trial) | C19: p (π) | D19: 0.2 | F19: =$D$18 -> 3
C21: X | D21: P(x) = f(x) | G21: =B19&" = "&C19&" = "&D19&CHAR(10)&B8&" = "&D17 -> Prob of Success (remains the same of trial) = p (π) = 0.2 Fixed # of Identical Trials = n = 4
C22: 0 | D22: =_xlfn.BINOM.DIST(C22,$D$17,$D$19,0) -> 0.4096 | G22: P(x) = f(x) | H22: P(x) = f(x) | I22: SUM
C23: 1 | D23: =_xlfn.BINOM.DIST(C23,$D$17,$D$19,0) -> 0.4096 | G23: ="P(x = "&F15&")" -> P(x = 3) | H23: =_xlfn.BINOM.DIST(D18,D17,D19,0) -> 0.0256 | I23: =D25 -> 0.0256 | K23: Success = s | L23: Sale
C24: 2 | D24: 0.1536 | G24: ="P(x <= "&F19&")" -> P(x <= 3) | H24: =_xlfn.BINOM.DIST(D18,D17,D19,1) -> 0.9984 | I24: =SUM(D22:D25) -> 0.9984 | K24: #S.P. = COMBIN | L24: =COMBIN(L26,L25) -> 4 | N24: An insurance agent has appointments with 4 clients tomorrow. From past data, the chance of making a sale is 1 in 5. What is likelihood that she will sell 3 policies in 4 tries? | U24: Define P(Event) = Sum of Probabilities of Sample Points in Event
C25: 3 | D25: 0.0256 | G25: ="P(x > "&F17&")" -> P(x > 3) | H25: =1-_xlfn.BINOM.DIST(D18,D17,D19,1) -> 0.0016 | I25: =SUM(D26) -> 0.0016 | K25: x = # policies Sold | L25: 3
C26: 4 | D26: 0.0016 | G26: ="P(x >= "&F16&")" -> P(x >= 3) | H26: =1-_xlfn.BINOM.DIST(D18-1,D17,D19,1) -> 0.0272 | I26: =SUM(D25:D26) -> 0.0272 | K26: n = Trials or Steps | L26: 4
D27: =SUM(D22:D26) -> 1 | G27: ="P(x < "&F18&")" -> P(x < 3) | H27: =_xlfn.BINOM.DIST(D18-1,D17,D19,1) -> 0.9728 | I27: =SUM(D22:D24) -> 0.9728 | J27: s | K27: p = Prob of success | L27: =1/5 -> 0.2
B28: Chart Title | J28: ns | K28: (1-p) = Not a sale | L28: =1-L27 -> 0.8
B29: ="Binomial Distribution n = "&D17&", p = "&D19 -> Binomial Distribution n = 4, p = 0.2 | K29: # S.P. | L29: C1 | M29: C2 | N29: C3 | O29: C4 | P29: P1 | Q29: P2 | R29: P3 | S29: P4 | T29: P(S.P.) | U29: Multiply
K30: 1 | L30: ns | M30: s | N30: s | O30: s | P30: =VLOOKUP(L30,$J$27:$L$28,3,0) -> 0.8 | Q30: 0.2 | R30: 0.2 | S30: 0.2 | T30: =PRODUCT(P30:S30) -> 0.0064
K31: 2 | L31: s | M31: ns | N31: s | O31: s | P31: 0.2 | Q31: 0.8 | R31: 0.2 | S31: 0.2 | T31: =PRODUCT(P31:S31) -> 0.0064
K32: 3 | L32: s | M32: s | N32: ns | O32: s | P32: 0.2 | Q32: 0.2 | R32: 0.8 | S32: 0.2 | T32: 0.0064
K33: 4 | L33: s | M33: s | N33: s | O33: ns | P33: 0.2 | Q33: 0.2 | R33: 0.2 | S33: 0.8 | T33: 0.0064
T34: =SUM(T30:T33) -> 0.0256 | U34: Add

Sheet B(2)
A1: Binomial Experiment 4 Requirements:
A2: 1 | B2: Experiment consists of a sequence of n identical trials. Random Variable counts the number of successes in a Fixed number of trials, n.
B3: Fixed # of Identical Trials = n | C3: Yes
A4: 2 | B4: Only 2 outcomes are possible on each indetical trial. Success or Failure.
B5: Each trial only results in S or F | C5: Yes
A6: 3 | B6: Probability of Success = p = (π "pi"). Probability of Failure = 1-p. Probability remains the same on each trial.
B7: p remains the same for each trial | C7: Yes
A8: 4 | B8: The trials are independent (one does not affact the next)
B9: All events are independent | C9: Yes
B11: A flight from Oakland to Seattle occurs 6 times per day. The probability that any 1 flight is late is 10%. What is the probability that exactly 2 planes are late? Less than 2 are late? What is the mean and standard deviation?
B12: Variables
B13: Late Plane | C13: Success | D13: s
B14: Plane On Time | C14: Failure | D14: f
B15: # flights per day | C15: n | D15: 6
B16: # plance late in 6 tries (1 day) | C16: x | D16: 2
B17: Prob of success = prob plane late | C17: p (π) | D17: 0.1
B19: =B17&" = "&C17&" = "&D17&CHAR(10)&B3&" = "&D15 -> Prob of success = prob plane late = p (π) = 0.1 Fixed # of Identical Trials = n = 6
B20: P(x) = f(x) | C20: P(x) = f(x) | E20: Check
A21: 2 | B21: ="P(x = "&A21&")" -> P(x = 2)
A22: 2 | B22: ="P(x >= "&A22&")" -> P(x >= 2)
A23: 2 | B23: ="P(x > "&A23&")" -> P(x > 2)
A24: 2 | B24: ="P(x < "&A24&")" -> P(x < 2)
A25: 2 | B25: ="P(x <= "&A25&")" -> P(x <= 2)
A27: Mean | B27: Σx*f(x)
A28: SD | B28: sqrt(Σ(x-mean)^2*f(x))
A29: Mean | B29: n*p
A30: SD | B30: sqrt(n*p*(1-p))
C32: X | D32: f(x)
C33: 0 | D33: =_xlfn.BINOM.DIST(C33,$F$34,$G$34,0) -> 0.531441 | F33: n | G33: pi
C34: 1 | D34: =_xlfn.BINOM.DIST(C34,$F$34,$G$34,0) -> 0.354294 | F34: 6 | G34: 0.1
C35: 2 | D35: 0.098415
C36: 3 | D36: 0.01458
C37: 4 | D37: 0.001215
C38: 5 | D38: 5.4e-05
C39: 6 | D39: 1e-06
D40: =SUM(D33:D39) -> 1
B43: Traffic on Bridge Example, n = 7, pi = .15
B44: Success = Stuck In Traffic | C44: s
B45: Failure = Not Stuck | C45: f
B46: n = Days across Bridge | C46: 7
B47: x = # times stuck in Traffic in 7 Tries
B48: p (π) = Prob Stuck in Traffic | C48: 0.15
F49: Check
A50: x | B50: 3 | F50: =SUM(D59) -> 0.06166198828
A51: x | B51: 5 or more times | D51: 5 | F51: =SUM(D61:D63) -> 0.001221644531
A52: mean | B52: Long Run Average = Expected Value | F52: =SUMPRODUCT(C56:C63,D56:D63) -> 1.05
A53: Sd | B53: Variation = Spread in data = Fair Mean? | F53: =SQRT(SUMPRODUCT((C56:C63-F52)^2,D56:D63)) -> 0.9447221814
C55: x | D55: p(x) | E55: n | F55: pi
C56: 0 | D56: =_xlfn.BINOM.DIST(C56,$E$56,$F$56,0) -> 0.3205770883 | E56: 7 | F56: 0.15
C57: 1 | D57: 0.3960069914
C58: 2 | D58: 0.2096507602
C59: 3 | D59: 0.06166198828
C60: 4 | D60: 0.01088152734
C61: 5 | D61: 0.001152161719
C62: 6 | D62: 6.777421875e-05
C63: 7 | D63: 1.70859375e-06
D64: =SUM(D56:D63) -> 1

Sheet B(2an)
A1: Binomial Experiment 4 Requirements:
A2: 1 | B2: Experiment consists of a sequence of n identical trials. Random Variable counts the number of successes in a Fixed number of trials, n.
B3: Fixed # of Identical Trials = n | C3: Yes
A4: 2 | B4: Only 2 outcomes are possible on each indetical trial. Success or Failure.
B5: Each trial only results in S or F | C5: Yes
A6: 3 | B6: Probability of Success = p = (π "pi"). Probability of Failure = 1-p. Probability remains the same on each trial.
B7: p remains the same for each trial | C7: Yes
A8: 4 | B8: The trials are independent (one does not affact the next)
B9: All events are independent | C9: Yes
B11: A flight from Oakland to Seattle occurs 6 times per day. The probability that any 1 flight is late is 10%. What is the probability that exactly 2 planes are late? Less than 2 are late? What is the mean and standard deviation?
B12: Variables
B13: Late Plane | C13: Success | D13: s
B14: Plane On Time | C14: Failure | D14: f
B15: # flights per day | C15: n | D15: 6
B16: # plance late in 6 tries (1 day) | C16: x | D16: 2
B17: Prob of success = prob plane late | C17: p (π) | D17: 0.1
B19: =B17&" = "&C17&" = "&D17&CHAR(10)&B3&" = "&D15 -> Prob of success = prob plane late = p (π) = 0.1 Fixed # of Identical Trials = n = 6
B20: P(x) = f(x) | C20: P(x) = f(x) | E20: Check
A21: 2 | B21: ="P(x = "&A21&")" -> P(x = 2) | C21: =_xlfn.BINOM.DIST(A21,D15,D17,0) -> 0.098415 | E21: =D35 -> 0.098415
A22: 2 | B22: ="P(x >= "&A22&")" -> P(x >= 2) | C22: =1-_xlfn.BINOM.DIST(A22-1,D15,D17,1) -> 0.114265 | E22: =SUM(D35:D39) -> 0.114265
A23: 2 | B23: ="P(x > "&A23&")" -> P(x > 2) | C23: =1-_xlfn.BINOM.DIST(A23,D15,D17,1) -> 0.01585 | E23: =SUM(D36:D39) -> 0.01585
A24: 2 | B24: ="P(x < "&A24&")" -> P(x < 2) | C24: =_xlfn.BINOM.DIST(A24-1,D15,D17,1) -> 0.885735 | E24: =SUM(D33:D34) -> 0.885735
A25: 2 | B25: ="P(x <= "&A25&")" -> P(x <= 2) | C25: =_xlfn.BINOM.DIST(A25,D15,D17,1) -> 0.98415 | E25: =SUM(D33:D35) -> 0.98415
A27: Mean | B27: Σx*f(x) | C27: =SUMPRODUCT(C33:C39,D33:D39) -> 0.6
A28: SD | B28: sqrt(Σ(x-mean)^2*f(x)) | C28: =SQRT(SUMPRODUCT((C33:C39-C27)^2,D33:D39)) -> 0.7348469228
A29: Mean | B29: n*p | C29: =D15*D17 -> 0.6
A30: SD | B30: sqrt(n*p*(1-p)) | C30: =SQRT(C29*(1-D17)) -> 0.7348469228
C32: X | D32: f(x)
C33: 0 | D33: =_xlfn.BINOM.DIST(C33,$F$34,$G$34,0) -> 0.531441 | F33: n | G33: pi
C34: 1 | D34: =_xlfn.BINOM.DIST(C34,$F$34,$G$34,0) -> 0.354294 | F34: 6 | G34: 0.1
C35: 2 | D35: 0.098415
C36: 3 | D36: 0.01458
C37: 4 | D37: 0.001215
C38: 5 | D38: 5.4e-05
C39: 6 | D39: 1e-06
D40: =SUM(D33:D39) -> 1
B43: Traffic on Bridge Example, n = 7, pi = .15
B44: Success = Stuck In Traffic | C44: s
B45: Failure = Not Stuck | C45: f
B46: n = Days across Bridge | C46: 7
B47: x = # times stuck in Traffic in 7 Tries
B48: p (π) = Prob Stuck in Traffic | C48: 0.15
F49: Check
A50: x | B50: 3 | C50: =_xlfn.BINOM.DIST(B50,C46,C48,0) -> 0.06166198828 | F50: =SUM(D59) -> 0.06166198828
A51: x | B51: 5 or more times | C51: =1-_xlfn.BINOM.DIST(D51-1,C46,C48,1) -> 0.001221644531 | D51: 5 | F51: =SUM(D61:D63) -> 0.001221644531
A52: mean | B52: Long Run Average = Expected Value | C52: =C46*C48 -> 1.05 | F52: =SUMPRODUCT(C56:C63,D56:D63) -> 1.05
A53: Sd | B53: Variation = Spread in data = Fair Mean? | C53: =SQRT(C52*(1-C48)) -> 0.9447221814 | F53: =SQRT(SUMPRODUCT((C56:C63-F52)^2,D56:D63)) -> 0.9447221814
C55: x | D55: p(x) | E55: n | F55: pi
C56: 0 | D56: =_xlfn.BINOM.DIST(C56,$E$56,$F$56,0) -> 0.3205770883 | E56: 7 | F56: 0.15
C57: 1 | D57: 0.3960069914
C58: 2 | D58: 0.2096507602
C59: 3 | D59: 0.06166198828
C60: 4 | D60: 0.01088152734
C61: 5 | D61: 0.001152161719
C62: 6 | D62: 6.777421875e-05
C63: 7 | D63: 1.70859375e-06
D64: =SUM(D56:D63) -> 1

Sheet B(2.5)
A1: Binomial Experiment 4 Requirements:
A2: 1 | B2: Experiment consists of a sequence of n identical trials. Random Variable counts the number of successes in a Fixed number of trials, n.
B3: Fixed # of Identical Trials = n | C3: Yes
A4: 2 | B4: Only 2 outcomes are possible on each identical trial. Success or Failure.
B5: Each trial only results in S or F | C5: Yes
A6: 3 | B6: Probability of Success = p = (π "pi"). Probability of Failure = 1-p. Probability remains the same on each trial.
B7: p remains the same for each trial | C7: Yes
A8: 4 | B8: The trials are independent (one does not affect the next)
B9: All events are independent | C9: Yes
B11: ="Highline found that "&TEXT(D17,"0.00%")&" of its students withdraw from Accounting 202. In the current class that has "&D15&" students enrolled, what is the probability that "&K16&" will withdraw; "&K18&" will withdraw; "&K17&" will withdraw; and what is the expected number (average) of withdrawals?" -> Highline found that 16.00% of its students withdraw from Accounting 202. In the current class that has 42 students enrolled, what is the probability that 2 or fewer will withdraw; more than 3 will withdraw; exactly 4 will withdraw; and what is the expected number (average) of withdrawals?
B12: Variables
B13: Withdraw Accounting 202 | C13: Success
B14: ="Not "&B13 -> Not Withdraw Accounting 202 | C14: Failure
C15: n | D15: 42 | F15: n | G15: x | H15: P(x) = f(x) | I15: P(x) = f(x) | M15: Check
B16: ="# successes = # that "&B13 -> # successes = # that Withdraw Accounting 202 | C16: x | F16: =$D$15 -> 42 | G16: 2 | H16: ="P("&K16&")" -> P(2 or fewer) | I16: P(x) = f(x) | J16: ="P(x <= "&G16&")" -> P(x <= 2) | K16: =G16&" or fewer" -> 2 or fewer | M16: =SUM(J25:J27) -> 0.02656852404
B17: ="Probability of "&B13 -> Probability of Withdraw Accounting 202 | C17: p (π) | D17: 0.16 | F17: =$D$15 -> 42 | G17: 4 | H17: ="P("&K17&")" -> P(exactly 4) | J17: ="P(x = "&G17&")" -> P(x = 4) | K17: ="exactly "&G17 -> exactly 4 | M17: =J29 -> 0.09728352638
F18: =$D$15 -> 42 | G18: 3 | H18: ="P("&K18&")" -> P(more than 3) | J18: ="P(x > "&G18&")" -> P(x > 3) | K18: ="more than "&G18 -> more than 3 | M18: =SUM(J29:J67) -> 0.9210480387
H19: Mean = E(x) = n*p | M19: =SUMPRODUCT(I25:I67,J25:J67) -> 6.72
B22: ="Binomial Distribution, n = "&D15&" p = "&D17 -> Binomial Distribution, n = 42 p = 0.16
I24: x | J24: P(x) | K24: n | L24: p
I25: 0 | J25: =_xlfn.BINOM.DIST(I25,$K$25,$L$25,0) -> 0.0006602828461 | K25: =D15 -> 42 | L25: =D17 -> 0.16
I26: 1 | J26: =_xlfn.BINOM.DIST(I26,$K$25,$L$25,0) -> 0.005282262769
I27: 2 | J27: 0.02062597843
I28: 3 | J28: 0.05238343728
I29: 4 | J29: 0.09728352638
I30: 5 | J30: 0.1408294858
I31: 6 | J31: 0.1654187611
I32: 7 | J32: 0.162042868
I33: 8 | J33: 0.1350357234
I34: 9 | J34: 0.09716856284
I35: 10 | J35: 0.06107738235
I36: 11 | J36: 0.03384374434
I37: 12 | J37: 0.01665327102
I38: 13 | J38: 0.007320119131
I39: 14 | J39: 0.002888210269
I40: 15 | J40: 0.001026919207
I41: 16 | J41: 0.0003300811736
I42: 17 | J42: 9.6158101e-05
I43: 18 | J43: 2.543865106e-05
I44: 19 | J44: 6.120577698e-06
I45: 20 | J45: 1.340697972e-06
I46: 21 | J46: 2.675315681e-07
I47: 22 | J47: 4.864210329e-08
I48: 23 | J48: 8.056663071e-09
I49: 24 | J49: 1.214893638e-09
I50: 25 | J50: 1.666139846e-10
I51: 26 | J51: 2.075045962e-11
I52: 27 | J52: 2.342203555e-12
I53: 28 | J53: 2.390003628e-13
I54: 29 | J54: 2.197704485e-14
I55: 30 | J55: 1.813978305e-15
I56: 31 | J56: 1.337495525e-16
I57: 32 | J57: 8.757411173e-18
I58: 33 | J58: 5.054782784e-19
I59: 34 | J59: 2.548629975e-20
I60: 35 | J60: 1.109607608e-21
I61: 36 | J61: 4.109657808e-23
I62: 37 | J62: 1.269392373e-24
I63: 38 | J63: 3.181434519e-26
I64: 39 | J64: 6.215256692e-28
I65: 40 | J65: 8.878938131e-30
I66: 41 | J66: 8.249884442e-32
I67: 42 | J67: 3.741444192e-34
J68: =SUM(J25:J67) -> 1

Sheet B(2.5an)
A1: Binomial Experiment 4 Requirements:
A2: 1 | B2: Experiment consists of a sequence of n identical trials. Random Variable counts the number of successes in a Fixed number of trials, n.
B3: Fixed # of Identical Trials = n | C3: Yes
A4: 2 | B4: Only 2 outcomes are possible on each identical trial. Success or Failure.
B5: Each trial only results in S or F | C5: Yes
A6: 3 | B6: Probability of Success = p = (π "pi"). Probability of Failure = 1-p. Probability remains the same on each trial.
B7: p remains the same for each trial | C7: Yes
A8: 4 | B8: The trials are independent (one does not affect the next)
B9: All events are independent | C9: Yes
B11: ="Highline found that "&TEXT(D17,"0.00%")&" of its students withdraw from Accounting 202. In the current class that has "&D15&" students enrolled, what is the probability that "&K16&" will withdraw; "&K18&" will withdraw; "&K17&" will withdraw; and what is the expected number (average) of withdrawals?" -> Highline found that 16.00% of its students withdraw from Accounting 202. In the current class that has 42 students enrolled, what is the probability that 2 or fewer will withdraw; more than 3 will withdraw; exactly 4 will withdraw; and what is the expected number (average) of withdrawals?
B12: Variables
B13: Withdraw Accounting 202 | C13: Success
B14: ="Not "&B13 -> Not Withdraw Accounting 202 | C14: Failure
C15: n | D15: 42 | F15: n | G15: x | H15: P(x) = f(x) | I15: P(x) = f(x) | M15: Check
B16: ="# successes = # that "&B13 -> # successes = # that Withdraw Accounting 202 | C16: x | F16: =$D$15 -> 42 | G16: 2 | H16: ="P("&K16&")" -> P(2 or fewer) | I16: =_xlfn.BINOM.DIST(G16,F16,D17,1) -> 0.02656852404 | J16: ="P(x <= "&G16&")" -> P(x <= 2) | K16: =G16&" or fewer" -> 2 or fewer | M16: =SUM(J25:J27) -> 0.02656852404
B17: ="Probability of "&B13 -> Probability of Withdraw Accounting 202 | C17: p (π) | D17: 0.16 | F17: =$D$15 -> 42 | G17: 4 | H17: ="P("&K17&")" -> P(exactly 4) | I17: =_xlfn.BINOM.DIST(G17,F17,D17,0) -> 0.09728352638 | J17: ="P(x = "&G17&")" -> P(x = 4) | K17: ="exactly "&G17 -> exactly 4 | M17: =J29 -> 0.09728352638
F18: =$D$15 -> 42 | G18: 3 | H18: ="P("&K18&")" -> P(more than 3) | I18: =1-_xlfn.BINOM.DIST(G18,F18,D17,1) -> 0.9210480387 | J18: ="P(x > "&G18&")" -> P(x > 3) | K18: ="more than "&G18 -> more than 3 | M18: =SUM(J29:J67) -> 0.9210480387
H19: Mean = E(x) = n*p | I19: =D15*D17 -> 6.72 | M19: =SUMPRODUCT(I25:I67,J25:J67) -> 6.72
B22: ="Binomial Distribution, n = "&D15&" p = "&D17 -> Binomial Distribution, n = 42 p = 0.16
I24: x | J24: P(x) | K24: n | L24: p
I25: 0 | J25: =_xlfn.BINOM.DIST(I25,$K$25,$L$25,0) -> 0.0006602828461 | K25: =D15 -> 42 | L25: =D17 -> 0.16
I26: 1 | J26: =_xlfn.BINOM.DIST(I26,$K$25,$L$25,0) -> 0.005282262769
I27: 2 | J27: 0.02062597843
I28: 3 | J28: 0.05238343728
I29: 4 | J29: 0.09728352638
I30: 5 | J30: 0.1408294858
I31: 6 | J31: 0.1654187611
I32: 7 | J32: 0.162042868
I33: 8 | J33: 0.1350357234
I34: 9 | J34: 0.09716856284
I35: 10 | J35: 0.06107738235
I36: 11 | J36: 0.03384374434
I37: 12 | J37: 0.01665327102
I38: 13 | J38: 0.007320119131
I39: 14 | J39: 0.002888210269
I40: 15 | J40: 0.001026919207
I41: 16 | J41: 0.0003300811736
I42: 17 | J42: 9.6158101e-05
I43: 18 | J43: 2.543865106e-05
I44: 19 | J44: 6.120577698e-06
I45: 20 | J45: 1.340697972e-06
I46: 21 | J46: 2.675315681e-07
I47: 22 | J47: 4.864210329e-08
I48: 23 | J48: 8.056663071e-09
I49: 24 | J49: 1.214893638e-09
I50: 25 | J50: 1.666139846e-10
I51: 26 | J51: 2.075045962e-11
I52: 27 | J52: 2.342203555e-12
I53: 28 | J53: 2.390003628e-13
I54: 29 | J54: 2.197704485e-14
I55: 30 | J55: 1.813978305e-15
I56: 31 | J56: 1.337495525e-16
I57: 32 | J57: 8.757411173e-18
I58: 33 | J58: 5.054782784e-19
I59: 34 | J59: 2.548629975e-20
I60: 35 | J60: 1.109607608e-21
I61: 36 | J61: 4.109657808e-23
I62: 37 | J62: 1.269392373e-24
I63: 38 | J63: 3.181434519e-26
I64: 39 | J64: 6.215256692e-28
I65: 40 | J65: 8.878938131e-30
I66: 41 | J66: 8.249884442e-32
I67: 42 | J67: 3.741444192e-34
J68: =SUM(J25:J67) -> 1

Sheet B(3)
A1: n | B1: 8 | E1: ="Binomial Distribution, n = "&B1&" p = "&B2 -> Binomial Distribution, n = 8 p = 0.16
A2: p | B2: 0.16
A5: X | B5: p(x)
A6: =IF(ROWS(A$6:A6)<=$B$1+1,ROWS(A$6:A6)-1,"") -> 0 | B6: =IF(ROWS(A$6:A6)<=$B$1+1,_xlfn.BINOM.DIST(A6,$B$1,$B$2,0),"") -> 0.2478758911
A7: =IF(ROWS(A$6:A7)<=$B$1+1,ROWS(A$6:A7)-1,"") -> 1 | B7: =IF(ROWS(A$6:A7)<=$B$1+1,_xlfn.BINOM.DIST(A7,$B$1,$B$2,0),"") -> 0.3777156436
A8: =IF(ROWS(A$6:A8)<=$B$1+1,ROWS(A$6:A8)-1,"") -> 2 | B8: =IF(ROWS(A$6:A8)<=$B$1+1,_xlfn.BINOM.DIST(A8,$B$1,$B$2,0),"") -> 0.2518104291
A9: =IF(ROWS(A$6:A9)<=$B$1+1,ROWS(A$6:A9)-1,"") -> 3 | B9: =IF(ROWS(A$6:A9)<=$B$1+1,_xlfn.BINOM.DIST(A9,$B$1,$B$2,0),"") -> 0.0959277825
A10: =IF(ROWS(A$6:A10)<=$B$1+1,ROWS(A$6:A10)-1,"") -> 4 | B10: =IF(ROWS(A$6:A10)<=$B$1+1,_xlfn.BINOM.DIST(A10,$B$1,$B$2,0),"") -> 0.02283994821
A11: =IF(ROWS(A$6:A11)<=$B$1+1,ROWS(A$6:A11)-1,"") -> 5 | B11: =IF(ROWS(A$6:A11)<=$B$1+1,_xlfn.BINOM.DIST(A11,$B$1,$B$2,0),"") -> 0.003480373061 | D11: As n increases, distributions approached Bell
A12: =IF(ROWS(A$6:A12)<=$B$1+1,ROWS(A$6:A12)-1,"") -> 6 | B12: =IF(ROWS(A$6:A12)<=$B$1+1,_xlfn.BINOM.DIST(A12,$B$1,$B$2,0),"") -> 0.0003314641011 | D12: As p approaches 0.5, distributions approached Bell
A13: =IF(ROWS(A$6:A13)<=$B$1+1,ROWS(A$6:A13)-1,"") -> 7 | B13: =IF(ROWS(A$6:A13)<=$B$1+1,_xlfn.BINOM.DIST(A13,$B$1,$B$2,0),"") -> 1.803886264e-05 | D13: At p = .5, distribution is Bell
A14: =IF(ROWS(A$6:A14)<=$B$1+1,ROWS(A$6:A14)-1,"") -> 8 | B14: =IF(ROWS(A$6:A14)<=$B$1+1,_xlfn.BINOM.DIST(A14,$B$1,$B$2,0),"") -> 4.294967296e-07
A15: =IF(ROWS(A$6:A15)<=$B$1+1,ROWS(A$6:A15)-1,"") ->  | B15: =IF(ROWS(A$6:A15)<=$B$1+1,_xlfn.BINOM.DIST(A15,$B$1,$B$2,0),"") -> 
A16: =IF(ROWS(A$6:A16)<=$B$1+1,ROWS(A$6:A16)-1,"") ->  | B16: =IF(ROWS(A$6:A16)<=$B$1+1,_xlfn.BINOM.DIST(A16,$B$1,$B$2,0),"") -> 
A17: =IF(ROWS(A$6:A17)<=$B$1+1,ROWS(A$6:A17)-1,"") ->  | B17: =IF(ROWS(A$6:A17)<=$B$1+1,_xlfn.BINOM.DIST(A17,$B$1,$B$2,0),"") -> 
A18: =IF(ROWS(A$6:A18)<=$B$1+1,ROWS(A$6:A18)-1,"") ->  | B18: =IF(ROWS(A$6:A18)<=$B$1+1,_xlfn.BINOM.DIST(A18,$B$1,$B$2,0),"") -> 
A19: =IF(ROWS(A$6:A19)<=$B$1+1,ROWS(A$6:A19)-1,"") ->  | B19: =IF(ROWS(A$6:A19)<=$B$1+1,_xlfn.BINOM.DIST(A19,$B$1,$B$2,0),"") -> 
A20: =IF(ROWS(A$6:A20)<=$B$1+1,ROWS(A$6:A20)-1,"") ->  | B20: =IF(ROWS(A$6:A20)<=$B$1+1,_xlfn.BINOM.DIST(A20,$B$1,$B$2,0),"") -> 
A21: =IF(ROWS(A$6:A21)<=$B$1+1,ROWS(A$6:A21)-1,"") ->  | B21: =IF(ROWS(A$6:A21)<=$B$1+1,_xlfn.BINOM.DIST(A21,$B$1,$B$2,0),"") -> 
A22: =IF(ROWS(A$6:A22)<=$B$1+1,ROWS(A$6:A22)-1,"") ->  | B22: =IF(ROWS(A$6:A22)<=$B$1+1,_xlfn.BINOM.DIST(A22,$B$1,$B$2,0),"") -> 
A23: =IF(ROWS(A$6:A23)<=$B$1+1,ROWS(A$6:A23)-1,"") ->  | B23: =IF(ROWS(A$6:A23)<=$B$1+1,_xlfn.BINOM.DIST(A23,$B$1,$B$2,0),"") -> 
A24: =IF(ROWS(A$6:A24)<=$B$1+1,ROWS(A$6:A24)-1,"") ->  | B24: =IF(ROWS(A$6:A24)<=$B$1+1,_xlfn.BINOM.DIST(A24,$B$1,$B$2,0),"") -> 
A25: =IF(ROWS(A$6:A25)<=$B$1+1,ROWS(A$6:A25)-1,"") ->  | B25: =IF(ROWS(A$6:A25)<=$B$1+1,_xlfn.BINOM.DIST(A25,$B$1,$B$2,0),"") -> 
A26: =IF(ROWS(A$6:A26)<=$B$1+1,ROWS(A$6:A26)-1,"") ->  | B26: =IF(ROWS(A$6:A26)<=$B$1+1,_xlfn.BINOM.DIST(A26,$B$1,$B$2,0),"") -> 
A27: =IF(ROWS(A$6:A27)<=$B$1+1,ROWS(A$6:A27)-1,"") ->  | B27: =IF(ROWS(A$6:A27)<=$B$1+1,_xlfn.BINOM.DIST(A27,$B$1,$B$2,0),"") -> 
A28: =IF(ROWS(A$6:A28)<=$B$1+1,ROWS(A$6:A28)-1,"") ->  | B28: =IF(ROWS(A$6:A28)<=$B$1+1,_xlfn.BINOM.DIST(A28,$B$1,$B$2,0),"") -> 
A29: =IF(ROWS(A$6:A29)<=$B$1+1,ROWS(A$6:A29)-1,"") ->  | B29: =IF(ROWS(A$6:A29)<=$B$1+1,_xlfn.BINOM.DIST(A29,$B$1,$B$2,0),"") -> 
A30: =IF(ROWS(A$6:A30)<=$B$1+1,ROWS(A$6:A30)-1,"") ->  | B30: =IF(ROWS(A$6:A30)<=$B$1+1,_xlfn.BINOM.DIST(A30,$B$1,$B$2,0),"") -> 
A31: =IF(ROWS(A$6:A31)<=$B$1+1,ROWS(A$6:A31)-1,"") ->  | B31: =IF(ROWS(A$6:A31)<=$B$1+1,_xlfn.BINOM.DIST(A31,$B$1,$B$2,0),"") -> 
A32: =IF(ROWS(A$6:A32)<=$B$1+1,ROWS(A$6:A32)-1,"") ->  | B32: =IF(ROWS(A$6:A32)<=$B$1+1,_xlfn.BINOM.DIST(A32,$B$1,$B$2,0),"") -> 
A33: =IF(ROWS(A$6:A33)<=$B$1+1,ROWS(A$6:A33)-1,"") ->  | B33: =IF(ROWS(A$6:A33)<=$B$1+1,_xlfn.BINOM.DIST(A33,$B$1,$B$2,0),"") -> 
A34: =IF(ROWS(A$6:A34)<=$B$1+1,ROWS(A$6:A34)-1,"") ->  | B34: =IF(ROWS(A$6:A34)<=$B$1+1,_xlfn.BINOM.DIST(A34,$B$1,$B$2,0),"") -> 
A35: =IF(ROWS(A$6:A35)<=$B$1+1,ROWS(A$6:A35)-1,"") ->  | B35: =IF(ROWS(A$6:A35)<=$B$1+1,_xlfn.BINOM.DIST(A35,$B$1,$B$2,0),"") -> 
A36: =IF(ROWS(A$6:A36)<=$B$1+1,ROWS(A$6:A36)-1,"") ->  | B36: =IF(ROWS(A$6:A36)<=$B$1+1,_xlfn.BINOM.DIST(A36,$B$1,$B$2,0),"") -> 
A37: =IF(ROWS(A$6:A37)<=$B$1+1,ROWS(A$6:A37)-1,"") ->  | B37: =IF(ROWS(A$6:A37)<=$B$1+1,_xlfn.BINOM.DIST(A37,$B$1,$B$2,0),"") -> 
A38: =IF(ROWS(A$6:A38)<=$B$1+1,ROWS(A$6:A38)-1,"") ->  | B38: =IF(ROWS(A$6:A38)<=$B$1+1,_xlfn.BINOM.DIST(A38,$B$1,$B$2,0),"") -> 
A39: =IF(ROWS(A$6:A39)<=$B$1+1,ROWS(A$6:A39)-1,"") ->  | B39: =IF(ROWS(A$6:A39)<=$B$1+1,_xlfn.BINOM.DIST(A39,$B$1,$B$2,0),"") -> 
A40: =IF(ROWS(A$6:A40)<=$B$1+1,ROWS(A$6:A40)-1,"") ->  | B40: =IF(ROWS(A$6:A40)<=$B$1+1,_xlfn.BINOM.DIST(A40,$B$1,$B$2,0),"") -> 
A41: =IF(ROWS(A$6:A41)<=$B$1+1,ROWS(A$6:A41)-1,"") ->  | B41: =IF(ROWS(A$6:A41)<=$B$1+1,_xlfn.BINOM.DIST(A41,$B$1,$B$2,0),"") -> 
A42: =IF(ROWS(A$6:A42)<=$B$1+1,ROWS(A$6:A42)-1,"") ->  | B42: =IF(ROWS(A$6:A42)<=$B$1+1,_xlfn.BINOM.DIST(A42,$B$1,$B$2,0),"") -> 
A43: =IF(ROWS(A$6:A43)<=$B$1+1,ROWS(A$6:A43)-1,"") ->  | B43: =IF(ROWS(A$6:A43)<=$B$1+1,_xlfn.BINOM.DIST(A43,$B$1,$B$2,0),"") -> 
A44: =IF(ROWS(A$6:A44)<=$B$1+1,ROWS(A$6:A44)-1,"") ->  | B44: =IF(ROWS(A$6:A44)<=$B$1+1,_xlfn.BINOM.DIST(A44,$B$1,$B$2,0),"") -> 
A45: =IF(ROWS(A$6:A45)<=$B$1+1,ROWS(A$6:A45)-1,"") ->  | B45: =IF(ROWS(A$6:A45)<=$B$1+1,_xlfn.BINOM.DIST(A45,$B$1,$B$2,0),"") -> 
A46: =IF(ROWS(A$6:A46)<=$B$1+1,ROWS(A$6:A46)-1,"") ->  | B46: =IF(ROWS(A$6:A46)<=$B$1+1,_xlfn.BINOM.DIST(A46,$B$1,$B$2,0),"") -> 
A47: =IF(ROWS(A$6:A47)<=$B$1+1,ROWS(A$6:A47)-1,"") ->  | B47: =IF(ROWS(A$6:A47)<=$B$1+1,_xlfn.BINOM.DIST(A47,$B$1,$B$2,0),"") -> 
A48: =IF(ROWS(A$6:A48)<=$B$1+1,ROWS(A$6:A48)-1,"") ->  | B48: =IF(ROWS(A$6:A48)<=$B$1+1,_xlfn.BINOM.DIST(A48,$B$1,$B$2,0),"") -> 
A49: =IF(ROWS(A$6:A49)<=$B$1+1,ROWS(A$6:A49)-1,"") ->  | B49: =IF(ROWS(A$6:A49)<=$B$1+1,_xlfn.BINOM.DIST(A49,$B$1,$B$2,0),"") -> 
A50: =IF(ROWS(A$6:A50)<=$B$1+1,ROWS(A$6:A50)-1,"") ->  | B50: =IF(ROWS(A$6:A50)<=$B$1+1,_xlfn.BINOM.DIST(A50,$B$1,$B$2,0),"") -> 
A51: =IF(ROWS(A$6:A51)<=$B$1+1,ROWS(A$6:A51)-1,"") ->  | B51: =IF(ROWS(A$6:A51)<=$B$1+1,_xlfn.BINOM.DIST(A51,$B$1,$B$2,0),"") -> 
A52: =IF(ROWS(A$6:A52)<=$B$1+1,ROWS(A$6:A52)-1,"") ->  | B52: =IF(ROWS(A$6:A52)<=$B$1+1,_xlfn.BINOM.DIST(A52,$B$1,$B$2,0),"") -> 
A53: =IF(ROWS(A$6:A53)<=$B$1+1,ROWS(A$6:A53)-1,"") ->  | B53: =IF(ROWS(A$6:A53)<=$B$1+1,_xlfn.BINOM.DIST(A53,$B$1,$B$2,0),"") -> 
A54: =IF(ROWS(A$6:A54)<=$B$1+1,ROWS(A$6:A54)-1,"") ->  | B54: =IF(ROWS(A$6:A54)<=$B$1+1,_xlfn.BINOM.DIST(A54,$B$1,$B$2,0),"") -> 
A55: =IF(ROWS(A$6:A55)<=$B$1+1,ROWS(A$6:A55)-1,"") ->  | B55: =IF(ROWS(A$6:A55)<=$B$1+1,_xlfn.BINOM.DIST(A55,$B$1,$B$2,0),"") -> 
A56: =IF(ROWS(A$6:A56)<=$B$1+1,ROWS(A$6:A56)-1,"") ->  | B56: =IF(ROWS(A$6:A56)<=$B$1+1,_xlfn.BINOM.DIST(A56,$B$1,$B$2,0),"") -> 
A57: =IF(ROWS(A$6:A57)<=$B$1+1,ROWS(A$6:A57)-1,"") ->  | B57: =IF(ROWS(A$6:A57)<=$B$1+1,_xlfn.BINOM.DIST(A57,$B$1,$B$2,0),"") -> 
A58: =IF(ROWS(A$6:A58)<=$B$1+1,ROWS(A$6:A58)-1,"") ->  | B58: =IF(ROWS(A$6:A58)<=$B$1+1,_xlfn.BINOM.DIST(A58,$B$1,$B$2,0),"") -> 
A59: =IF(ROWS(A$6:A59)<=$B$1+1,ROWS(A$6:A59)-1,"") ->  | B59: =IF(ROWS(A$6:A59)<=$B$1+1,_xlfn.BINOM.DIST(A59,$B$1,$B$2,0),"") -> 
A60: =IF(ROWS(A$6:A60)<=$B$1+1,ROWS(A$6:A60)-1,"") ->  | B60: =IF(ROWS(A$6:A60)<=$B$1+1,_xlfn.BINOM.DIST(A60,$B$1,$B$2,0),"") -> 
A61: =IF(ROWS(A$6:A61)<=$B$1+1,ROWS(A$6:A61)-1,"") ->  | B61: =IF(ROWS(A$6:A61)<=$B$1+1,_xlfn.BINOM.DIST(A61,$B$1,$B$2,0),"") -> 
A62: =IF(ROWS(A$6:A62)<=$B$1+1,ROWS(A$6:A62)-1,"") ->  | B62: =IF(ROWS(A$6:A62)<=$B$1+1,_xlfn.BINOM.DIST(A62,$B$1,$B$2,0),"") -> 
A63: =IF(ROWS(A$6:A63)<=$B$1+1,ROWS(A$6:A63)-1,"") ->  | B63: =IF(ROWS(A$6:A63)<=$B$1+1,_xlfn.BINOM.DIST(A63,$B$1,$B$2,0),"") -> 
A64: =IF(ROWS(A$6:A64)<=$B$1+1,ROWS(A$6:A64)-1,"") ->  | B64: =IF(ROWS(A$6:A64)<=$B$1+1,_xlfn.BINOM.DIST(A64,$B$1,$B$2,0),"") -> 
A65: =IF(ROWS(A$6:A65)<=$B$1+1,ROWS(A$6:A65)-1,"") ->  | B65: =IF(ROWS(A$6:A65)<=$B$1+1,_xlfn.BINOM.DIST(A65,$B$1,$B$2,0),"") -> 
A66: =IF(ROWS(A$6:A66)<=$B$1+1,ROWS(A$6:A66)-1,"") ->  | B66: =IF(ROWS(A$6:A66)<=$B$1+1,_xlfn.BINOM.DIST(A66,$B$1,$B$2,0),"") -> 
A67: =IF(ROWS(A$6:A67)<=$B$1+1,ROWS(A$6:A67)-1,"") ->  | B67: =IF(ROWS(A$6:A67)<=$B$1+1,_xlfn.BINOM.DIST(A67,$B$1,$B$2,0),"") -> 
A68: =IF(ROWS(A$6:A68)<=$B$1+1,ROWS(A$6:A68)-1,"") ->  | B68: =IF(ROWS(A$6:A68)<=$B$1+1,_xlfn.BINOM.DIST(A68,$B$1,$B$2,0),"") -> 
A69: =IF(ROWS(A$6:A69)<=$B$1+1,ROWS(A$6:A69)-1,"") ->  | B69: =IF(ROWS(A$6:A69)<=$B$1+1,_xlfn.BINOM.DIST(A69,$B$1,$B$2,0),"") -> 
A70: =IF(ROWS(A$6:A70)<=$B$1+1,ROWS(A$6:A70)-1,"") ->  | B70: =IF(ROWS(A$6:A70)<=$B$1+1,_xlfn.BINOM.DIST(A70,$B$1,$B$2,0),"") -> 
A71: =IF(ROWS(A$6:A71)<=$B$1+1,ROWS(A$6:A71)-1,"") ->  | B71: =IF(ROWS(A$6:A71)<=$B$1+1,_xlfn.BINOM.DIST(A71,$B$1,$B$2,0),"") -> 
A72: =IF(ROWS(A$6:A72)<=$B$1+1,ROWS(A$6:A72)-1,"") ->  | B72: =IF(ROWS(A$6:A72)<=$B$1+1,_xlfn.BINOM.DIST(A72,$B$1,$B$2,0),"") -> 
A73: =IF(ROWS(A$6:A73)<=$B$1+1,ROWS(A$6:A73)-1,"") ->  | B73: =IF(ROWS(A$6:A73)<=$B$1+1,_xlfn.BINOM.DIST(A73,$B$1,$B$2,0),"") -> 
A74: =IF(ROWS(A$6:A74)<=$B$1+1,ROWS(A$6:A74)-1,"") ->  | B74: =IF(ROWS(A$6:A74)<=$B$1+1,_xlfn.BINOM.DIST(A74,$B$1,$B$2,0),"") -> 
A75: =IF(ROWS(A$6:A75)<=$B$1+1,ROWS(A$6:A75)-1,"") ->  | B75: =IF(ROWS(A$6:A75)<=$B$1+1,_xlfn.BINOM.DIST(A75,$B$1,$B$2,0),"") -> 
A76: =IF(ROWS(A$6:A76)<=$B$1+1,ROWS(A$6:A76)-1,"") ->  | B76: =IF(ROWS(A$6:A76)<=$B$1+1,_xlfn.BINOM.DIST(A76,$B$1,$B$2,0),"") -> 
A77: =IF(ROWS(A$6:A77)<=$B$1+1,ROWS(A$6:A77)-1,"") ->  | B77: =IF(ROWS(A$6:A77)<=$B$1+1,_xlfn.BINOM.DIST(A77,$B$1,$B$2,0),"") -> 
A78: =IF(ROWS(A$6:A78)<=$B$1+1,ROWS(A$6:A78)-1,"") ->  | B78: =IF(ROWS(A$6:A78)<=$B$1+1,_xlfn.BINOM.DIST(A78,$B$1,$B$2,0),"") -> 
A79: =IF(ROWS(A$6:A79)<=$B$1+1,ROWS(A$6:A79)-1,"") ->  | B79: =IF(ROWS(A$6:A79)<=$B$1+1,_xlfn.BINOM.DIST(A79,$B$1,$B$2,0),"") -> 
A80: =IF(ROWS(A$6:A80)<=$B$1+1,ROWS(A$6:A80)-1,"") ->  | B80: =IF(ROWS(A$6:A80)<=$B$1+1,_xlfn.BINOM.DIST(A80,$B$1,$B$2,0),"") -> 
A81: =IF(ROWS(A$6:A81)<=$B$1+1,ROWS(A$6:A81)-1,"") ->  | B81: =IF(ROWS(A$6:A81)<=$B$1+1,_xlfn.BINOM.DIST(A81,$B$1,$B$2,0),"") -> 
A82: =IF(ROWS(A$6:A82)<=$B$1+1,ROWS(A$6:A82)-1,"") ->  | B82: =IF(ROWS(A$6:A82)<=$B$1+1,_xlfn.BINOM.DIST(A82,$B$1,$B$2,0),"") -> 
A83: =IF(ROWS(A$6:A83)<=$B$1+1,ROWS(A$6:A83)-1,"") ->  | B83: =IF(ROWS(A$6:A83)<=$B$1+1,_xlfn.BINOM.DIST(A83,$B$1,$B$2,0),"") -> 
A84: =IF(ROWS(A$6:A84)<=$B$1+1,ROWS(A$6:A84)-1,"") ->  | B84: =IF(ROWS(A$6:A84)<=$B$1+1,_xlfn.BINOM.DIST(A84,$B$1,$B$2,0),"") -> 
A85: =IF(ROWS(A$6:A85)<=$B$1+1,ROWS(A$6:A85)-1,"") ->  | B85: =IF(ROWS(A$6:A85)<=$B$1+1,_xlfn.BINOM.DIST(A85,$B$1,$B$2,0),"") -> 

Sheet B(4)
A1: n | B1: 10 | D1: ="Binomial Distribution, n = "&B1&" p = "&B2&" "&C8 -> Binomial Distribution, n = 10 p = 0.5 P(X<=4)
A2: p | B2: 0.5 | D2: =C8&" = "&TEXT(B6,"0.0000") -> P(X<=4) = 0.3770
A3: X | B3: 4
A4: Comparative Operator | B4: <=
A5: Result | B5: =B4&B3 -> <=4
A6: BINOM.DIST | B6: =_xlfn.BINOM.DIST(B3,B1,B2,1) -> 0.376953125 | C6: =SUM(C9:C19) -> 0.376953125
A8: X | B8: p(x) | C8: ="P(X"&B5&")" -> P(X<=4)
A9: =IF(ROWS(A$9:A9)<=$B$1+1,ROWS(A$9:A9)-1,"") -> 0 | B9: =IF(ROWS(A$9:A9)<=$B$1+1,_xlfn.BINOM.DIST(A9,$B$1,$B$2,0),"") -> 0.0009765625 | C9: =IF(A9<=$B$3,B9,"") -> 0.0009765625
A10: =IF(ROWS(A$9:A10)<=$B$1+1,ROWS(A$9:A10)-1,"") -> 1 | B10: =IF(ROWS(A$9:A10)<=$B$1+1,_xlfn.BINOM.DIST(A10,$B$1,$B$2,0),"") -> 0.009765625 | C10: =IF(A10<=$B$3,B10,"") -> 0.009765625
A11: =IF(ROWS(A$9:A11)<=$B$1+1,ROWS(A$9:A11)-1,"") -> 2 | B11: =IF(ROWS(A$9:A11)<=$B$1+1,_xlfn.BINOM.DIST(A11,$B$1,$B$2,0),"") -> 0.0439453125 | C11: 0.0439453125
A12: =IF(ROWS(A$9:A12)<=$B$1+1,ROWS(A$9:A12)-1,"") -> 3 | B12: =IF(ROWS(A$9:A12)<=$B$1+1,_xlfn.BINOM.DIST(A12,$B$1,$B$2,0),"") -> 0.1171875 | C12: 0.1171875
A13: =IF(ROWS(A$9:A13)<=$B$1+1,ROWS(A$9:A13)-1,"") -> 4 | B13: =IF(ROWS(A$9:A13)<=$B$1+1,_xlfn.BINOM.DIST(A13,$B$1,$B$2,0),"") -> 0.205078125 | C13: 0.205078125
A14: =IF(ROWS(A$9:A14)<=$B$1+1,ROWS(A$9:A14)-1,"") -> 5 | B14: =IF(ROWS(A$9:A14)<=$B$1+1,_xlfn.BINOM.DIST(A14,$B$1,$B$2,0),"") -> 0.24609375
A15: =IF(ROWS(A$9:A15)<=$B$1+1,ROWS(A$9:A15)-1,"") -> 6 | B15: =IF(ROWS(A$9:A15)<=$B$1+1,_xlfn.BINOM.DIST(A15,$B$1,$B$2,0),"") -> 0.205078125
A16: =IF(ROWS(A$9:A16)<=$B$1+1,ROWS(A$9:A16)-1,"") -> 7 | B16: =IF(ROWS(A$9:A16)<=$B$1+1,_xlfn.BINOM.DIST(A16,$B$1,$B$2,0),"") -> 0.1171875
A17: =IF(ROWS(A$9:A17)<=$B$1+1,ROWS(A$9:A17)-1,"") -> 8 | B17: =IF(ROWS(A$9:A17)<=$B$1+1,_xlfn.BINOM.DIST(A17,$B$1,$B$2,0),"") -> 0.0439453125
A18: =IF(ROWS(A$9:A18)<=$B$1+1,ROWS(A$9:A18)-1,"") -> 9 | B18: =IF(ROWS(A$9:A18)<=$B$1+1,_xlfn.BINOM.DIST(A18,$B$1,$B$2,0),"") -> 0.009765625
A19: =IF(ROWS(A$9:A19)<=$B$1+1,ROWS(A$9:A19)-1,"") -> 10 | B19: =IF(ROWS(A$9:A19)<=$B$1+1,_xlfn.BINOM.DIST(A19,$B$1,$B$2,0),"") -> 0.0009765625
A20: =IF(ROWS(A$9:A20)<=$B$1+1,ROWS(A$9:A20)-1,"") ->  | B20: =IF(ROWS(A$9:A20)<=$B$1+1,_xlfn.BINOM.DIST(A20,$B$1,$B$2,0),"") -> 
A21: =IF(ROWS(A$9:A21)<=$B$1+1,ROWS(A$9:A21)-1,"") ->  | B21: =IF(ROWS(A$9:A21)<=$B$1+1,_xlfn.BINOM.DIST(A21,$B$1,$B$2,0),"") -> 
A22: =IF(ROWS(A$9:A22)<=$B$1+1,ROWS(A$9:A22)-1,"") ->  | B22: =IF(ROWS(A$9:A22)<=$B$1+1,_xlfn.BINOM.DIST(A22,$B$1,$B$2,0),"") -> 
A23: =IF(ROWS(A$9:A23)<=$B$1+1,ROWS(A$9:A23)-1,"") ->  | B23: =IF(ROWS(A$9:A23)<=$B$1+1,_xlfn.BINOM.DIST(A23,$B$1,$B$2,0),"") -> 
A24: =IF(ROWS(A$9:A24)<=$B$1+1,ROWS(A$9:A24)-1,"") ->  | B24: =IF(ROWS(A$9:A24)<=$B$1+1,_xlfn.BINOM.DIST(A24,$B$1,$B$2,0),"") -> 
A25: =IF(ROWS(A$9:A25)<=$B$1+1,ROWS(A$9:A25)-1,"") ->  | B25: =IF(ROWS(A$9:A25)<=$B$1+1,_xlfn.BINOM.DIST(A25,$B$1,$B$2,0),"") -> 
A26: =IF(ROWS(A$9:A26)<=$B$1+1,ROWS(A$9:A26)-1,"") ->  | B26: =IF(ROWS(A$9:A26)<=$B$1+1,_xlfn.BINOM.DIST(A26,$B$1,$B$2,0),"") -> 
A27: =IF(ROWS(A$9:A27)<=$B$1+1,ROWS(A$9:A27)-1,"") ->  | B27: =IF(ROWS(A$9:A27)<=$B$1+1,_xlfn.BINOM.DIST(A27,$B$1,$B$2,0),"") -> 
A28: =IF(ROWS(A$9:A28)<=$B$1+1,ROWS(A$9:A28)-1,"") ->  | B28: =IF(ROWS(A$9:A28)<=$B$1+1,_xlfn.BINOM.DIST(A28,$B$1,$B$2,0),"") -> 
A29: =IF(ROWS(A$9:A29)<=$B$1+1,ROWS(A$9:A29)-1,"") ->  | B29: =IF(ROWS(A$9:A29)<=$B$1+1,_xlfn.BINOM.DIST(A29,$B$1,$B$2,0),"") -> 
A30: =IF(ROWS(A$9:A30)<=$B$1+1,ROWS(A$9:A30)-1,"") ->  | B30: =IF(ROWS(A$9:A30)<=$B$1+1,_xlfn.BINOM.DIST(A30,$B$1,$B$2,0),"") -> 
A31: =IF(ROWS(A$9:A31)<=$B$1+1,ROWS(A$9:A31)-1,"") ->  | B31: =IF(ROWS(A$9:A31)<=$B$1+1,_xlfn.BINOM.DIST(A31,$B$1,$B$2,0),"") -> 
A32: =IF(ROWS(A$9:A32)<=$B$1+1,ROWS(A$9:A32)-1,"") ->  | B32: =IF(ROWS(A$9:A32)<=$B$1+1,_xlfn.BINOM.DIST(A32,$B$1,$B$2,0),"") -> 
A33: =IF(ROWS(A$9:A33)<=$B$1+1,ROWS(A$9:A33)-1,"") ->  | B33: =IF(ROWS(A$9:A33)<=$B$1+1,_xlfn.BINOM.DIST(A33,$B$1,$B$2,0),"") -> 
A34: =IF(ROWS(A$9:A34)<=$B$1+1,ROWS(A$9:A34)-1,"") ->  | B34: =IF(ROWS(A$9:A34)<=$B$1+1,_xlfn.BINOM.DIST(A34,$B$1,$B$2,0),"") -> 
A35: =IF(ROWS(A$9:A35)<=$B$1+1,ROWS(A$9:A35)-1,"") ->  | B35: =IF(ROWS(A$9:A35)<=$B$1+1,_xlfn.BINOM.DIST(A35,$B$1,$B$2,0),"") -> 
A36: =IF(ROWS(A$9:A36)<=$B$1+1,ROWS(A$9:A36)-1,"") ->  | B36: =IF(ROWS(A$9:A36)<=$B$1+1,_xlfn.BINOM.DIST(A36,$B$1,$B$2,0),"") -> 
A37: =IF(ROWS(A$9:A37)<=$B$1+1,ROWS(A$9:A37)-1,"") ->  | B37: =IF(ROWS(A$9:A37)<=$B$1+1,_xlfn.BINOM.DIST(A37,$B$1,$B$2,0),"") -> 
A38: =IF(ROWS(A$9:A38)<=$B$1+1,ROWS(A$9:A38)-1,"") ->  | B38: =IF(ROWS(A$9:A38)<=$B$1+1,_xlfn.BINOM.DIST(A38,$B$1,$B$2,0),"") -> 
A39: =IF(ROWS(A$9:A39)<=$B$1+1,ROWS(A$9:A39)-1,"") ->  | B39: =IF(ROWS(A$9:A39)<=$B$1+1,_xlfn.BINOM.DIST(A39,$B$1,$B$2,0),"") -> 
A40: =IF(ROWS(A$9:A40)<=$B$1+1,ROWS(A$9:A40)-1,"") ->  | B40: =IF(ROWS(A$9:A40)<=$B$1+1,_xlfn.BINOM.DIST(A40,$B$1,$B$2,0),"") -> 
A41: =IF(ROWS(A$9:A41)<=$B$1+1,ROWS(A$9:A41)-1,"") ->  | B41: =IF(ROWS(A$9:A41)<=$B$1+1,_xlfn.BINOM.DIST(A41,$B$1,$B$2,0),"") -> 
A42: =IF(ROWS(A$9:A42)<=$B$1+1,ROWS(A$9:A42)-1,"") ->  | B42: =IF(ROWS(A$9:A42)<=$B$1+1,_xlfn.BINOM.DIST(A42,$B$1,$B$2,0),"") -> 
A43: =IF(ROWS(A$9:A43)<=$B$1+1,ROWS(A$9:A43)-1,"") ->  | B43: =IF(ROWS(A$9:A43)<=$B$1+1,_xlfn.BINOM.DIST(A43,$B$1,$B$2,0),"") -> 
A44: =IF(ROWS(A$9:A44)<=$B$1+1,ROWS(A$9:A44)-1,"") ->  | B44: =IF(ROWS(A$9:A44)<=$B$1+1,_xlfn.BINOM.DIST(A44,$B$1,$B$2,0),"") -> 
A45: =IF(ROWS(A$9:A45)<=$B$1+1,ROWS(A$9:A45)-1,"") ->  | B45: =IF(ROWS(A$9:A45)<=$B$1+1,_xlfn.BINOM.DIST(A45,$B$1,$B$2,0),"") -> 
A46: =IF(ROWS(A$9:A46)<=$B$1+1,ROWS(A$9:A46)-1,"") ->  | B46: =IF(ROWS(A$9:A46)<=$B$1+1,_xlfn.BINOM.DIST(A46,$B$1,$B$2,0),"") -> 
A47: =IF(ROWS(A$9:A47)<=$B$1+1,ROWS(A$9:A47)-1,"") ->  | B47: =IF(ROWS(A$9:A47)<=$B$1+1,_xlfn.BINOM.DIST(A47,$B$1,$B$2,0),"") -> 
A48: =IF(ROWS(A$9:A48)<=$B$1+1,ROWS(A$9:A48)-1,"") ->  | B48: =IF(ROWS(A$9:A48)<=$B$1+1,_xlfn.BINOM.DIST(A48,$B$1,$B$2,0),"") -> 
A49: =IF(ROWS(A$9:A49)<=$B$1+1,ROWS(A$9:A49)-1,"") ->  | B49: =IF(ROWS(A$9:A49)<=$B$1+1,_xlfn.BINOM.DIST(A49,$B$1,$B$2,0),"") -> 
A50: =IF(ROWS(A$9:A50)<=$B$1+1,ROWS(A$9:A50)-1,"") ->  | B50: =IF(ROWS(A$9:A50)<=$B$1+1,_xlfn.BINOM.DIST(A50,$B$1,$B$2,0),"") -> 
A51: =IF(ROWS(A$9:A51)<=$B$1+1,ROWS(A$9:A51)-1,"") ->  | B51: =IF(ROWS(A$9:A51)<=$B$1+1,_xlfn.BINOM.DIST(A51,$B$1,$B$2,0),"") -> 
A52: =IF(ROWS(A$9:A52)<=$B$1+1,ROWS(A$9:A52)-1,"") ->  | B52: =IF(ROWS(A$9:A52)<=$B$1+1,_xlfn.BINOM.DIST(A52,$B$1,$B$2,0),"") -> 
A53: =IF(ROWS(A$9:A53)<=$B$1+1,ROWS(A$9:A53)-1,"") ->  | B53: =IF(ROWS(A$9:A53)<=$B$1+1,_xlfn.BINOM.DIST(A53,$B$1,$B$2,0),"") -> 
A54: =IF(ROWS(A$9:A54)<=$B$1+1,ROWS(A$9:A54)-1,"") ->  | B54: =IF(ROWS(A$9:A54)<=$B$1+1,_xlfn.BINOM.DIST(A54,$B$1,$B$2,0),"") -> 
A55: =IF(ROWS(A$9:A55)<=$B$1+1,ROWS(A$9:A55)-1,"") ->  | B55: =IF(ROWS(A$9:A55)<=$B$1+1,_xlfn.BINOM.DIST(A55,$B$1,$B$2,0),"") -> 
A56: =IF(ROWS(A$9:A56)<=$B$1+1,ROWS(A$9:A56)-1,"") ->  | B56: =IF(ROWS(A$9:A56)<=$B$1+1,_xlfn.BINOM.DIST(A56,$B$1,$B$2,0),"") -> 
A57: =IF(ROWS(A$9:A57)<=$B$1+1,ROWS(A$9:A57)-1,"") ->  | B57: =IF(ROWS(A$9:A57)<=$B$1+1,_xlfn.BINOM.DIST(A57,$B$1,$B$2,0),"") -> 
A58: =IF(ROWS(A$9:A58)<=$B$1+1,ROWS(A$9:A58)-1,"") ->  | B58: =IF(ROWS(A$9:A58)<=$B$1+1,_xlfn.BINOM.DIST(A58,$B$1,$B$2,0),"") -> 
A59: =IF(ROWS(A$9:A59)<=$B$1+1,ROWS(A$9:A59)-1,"") ->  | B59: =IF(ROWS(A$9:A59)<=$B$1+1,_xlfn.BINOM.DIST(A59,$B$1,$B$2,0),"") -> 
A60: =IF(ROWS(A$9:A60)<=$B$1+1,ROWS(A$9:A60)-1,"") ->  | B60: =IF(ROWS(A$9:A60)<=$B$1+1,_xlfn.BINOM.DIST(A60,$B$1,$B$2,0),"") -> 
A61: =IF(ROWS(A$9:A61)<=$B$1+1,ROWS(A$9:A61)-1,"") ->  | B61: =IF(ROWS(A$9:A61)<=$B$1+1,_xlfn.BINOM.DIST(A61,$B$1,$B$2,0),"") -> 
A62: =IF(ROWS(A$9:A62)<=$B$1+1,ROWS(A$9:A62)-1,"") ->  | B62: =IF(ROWS(A$9:A62)<=$B$1+1,_xlfn.BINOM.DIST(A62,$B$1,$B$2,0),"") -> 
A63: =IF(ROWS(A$9:A63)<=$B$1+1,ROWS(A$9:A63)-1,"") ->  | B63: =IF(ROWS(A$9:A63)<=$B$1+1,_xlfn.BINOM.DIST(A63,$B$1,$B$2,0),"") -> 
A64: =IF(ROWS(A$9:A64)<=$B$1+1,ROWS(A$9:A64)-1,"") ->  | B64: =IF(ROWS(A$9:A64)<=$B$1+1,_xlfn.BINOM.DIST(A64,$B$1,$B$2,0),"") -> 
A65: =IF(ROWS(A$9:A65)<=$B$1+1,ROWS(A$9:A65)-1,"") ->  | B65: =IF(ROWS(A$9:A65)<=$B$1+1,_xlfn.BINOM.DIST(A65,$B$1,$B$2,0),"") -> 
A66: =IF(ROWS(A$9:A66)<=$B$1+1,ROWS(A$9:A66)-1,"") ->  | B66: =IF(ROWS(A$9:A66)<=$B$1+1,_xlfn.BINOM.DIST(A66,$B$1,$B$2,0),"") -> 
A67: =IF(ROWS(A$9:A67)<=$B$1+1,ROWS(A$9:A67)-1,"") ->  | B67: =IF(ROWS(A$9:A67)<=$B$1+1,_xlfn.BINOM.DIST(A67,$B$1,$B$2,0),"") -> 
A68: =IF(ROWS(A$9:A68)<=$B$1+1,ROWS(A$9:A68)-1,"") ->  | B68: =IF(ROWS(A$9:A68)<=$B$1+1,_xlfn.BINOM.DIST(A68,$B$1,$B$2,0),"") -> 
A69: =IF(ROWS(A$9:A69)<=$B$1+1,ROWS(A$9:A69)-1,"") ->  | B69: =IF(ROWS(A$9:A69)<=$B$1+1,_xlfn.BINOM.DIST(A69,$B$1,$B$2,0),"") -> 
A70: =IF(ROWS(A$9:A70)<=$B$1+1,ROWS(A$9:A70)-1,"") ->  | B70: =IF(ROWS(A$9:A70)<=$B$1+1,_xlfn.BINOM.DIST(A70,$B$1,$B$2,0),"") -> 
A71: =IF(ROWS(A$9:A71)<=$B$1+1,ROWS(A$9:A71)-1,"") ->  | B71: =IF(ROWS(A$9:A71)<=$B$1+1,_xlfn.BINOM.DIST(A71,$B$1,$B$2,0),"") -> 
A72: =IF(ROWS(A$9:A72)<=$B$1+1,ROWS(A$9:A72)-1,"") ->  | B72: =IF(ROWS(A$9:A72)<=$B$1+1,_xlfn.BINOM.DIST(A72,$B$1,$B$2,0),"") -> 
A73: =IF(ROWS(A$9:A73)<=$B$1+1,ROWS(A$9:A73)-1,"") ->  | B73: =IF(ROWS(A$9:A73)<=$B$1+1,_xlfn.BINOM.DIST(A73,$B$1,$B$2,0),"") -> 
A74: =IF(ROWS(A$9:A74)<=$B$1+1,ROWS(A$9:A74)-1,"") ->  | B74: =IF(ROWS(A$9:A74)<=$B$1+1,_xlfn.BINOM.DIST(A74,$B$1,$B$2,0),"") ->  | C74: =IF(A74<=$B$3,B74,"") -> 
A75: =IF(ROWS(A$9:A75)<=$B$1+1,ROWS(A$9:A75)-1,"") ->  | B75: =IF(ROWS(A$9:A75)<=$B$1+1,_xlfn.BINOM.DIST(A75,$B$1,$B$2,0),"") -> 
A76: =IF(ROWS(A$9:A76)<=$B$1+1,ROWS(A$9:A76)-1,"") ->  | B76: =IF(ROWS(A$9:A76)<=$B$1+1,_xlfn.BINOM.DIST(A76,$B$1,$B$2,0),"") -> 
A77: =IF(ROWS(A$9:A77)<=$B$1+1,ROWS(A$9:A77)-1,"") ->  | B77: =IF(ROWS(A$9:A77)<=$B$1+1,_xlfn.BINOM.DIST(A77,$B$1,$B$2,0),"") -> 
A78: =IF(ROWS(A$9:A78)<=$B$1+1,ROWS(A$9:A78)-1,"") ->  | B78: =IF(ROWS(A$9:A78)<=$B$1+1,_xlfn.BINOM.DIST(A78,$B$1,$B$2,0),"") -> 
A79: =IF(ROWS(A$9:A79)<=$B$1+1,ROWS(A$9:A79)-1,"") ->  | B79: =IF(ROWS(A$9:A79)<=$B$1+1,_xlfn.BINOM.DIST(A79,$B$1,$B$2,0),"") -> 
A80: =IF(ROWS(A$9:A80)<=$B$1+1,ROWS(A$9:A80)-1,"") ->  | B80: =IF(ROWS(A$9:A80)<=$B$1+1,_xlfn.BINOM.DIST(A80,$B$1,$B$2,0),"") -> 
A81: =IF(ROWS(A$9:A81)<=$B$1+1,ROWS(A$9:A81)-1,"") ->  | B81: =IF(ROWS(A$9:A81)<=$B$1+1,_xlfn.BINOM.DIST(A81,$B$1,$B$2,0),"") -> 
A82: =IF(ROWS(A$9:A82)<=$B$1+1,ROWS(A$9:A82)-1,"") ->  | B82: =IF(ROWS(A$9:A82)<=$B$1+1,_xlfn.BINOM.DIST(A82,$B$1,$B$2,0),"") -> 
A83: =IF(ROWS(A$9:A83)<=$B$1+1,ROWS(A$9:A83)-1,"") ->  | B83: =IF(ROWS(A$9:A83)<=$B$1+1,_xlfn.BINOM.DIST(A83,$B$1,$B$2,0),"") -> 
A84: =IF(ROWS(A$9:A84)<=$B$1+1,ROWS(A$9:A84)-1,"") ->  | B84: =IF(ROWS(A$9:A84)<=$B$1+1,_xlfn.BINOM.DIST(A84,$B$1,$B$2,0),"") -> 
A85: =IF(ROWS(A$9:A85)<=$B$1+1,ROWS(A$9:A85)-1,"") ->  | B85: =IF(ROWS(A$9:A85)<=$B$1+1,_xlfn.BINOM.DIST(A85,$B$1,$B$2,0),"") -> 
A86: =IF(ROWS(A$9:A86)<=$B$1+1,ROWS(A$9:A86)-1,"") ->  | B86: =IF(ROWS(A$9:A86)<=$B$1+1,_xlfn.BINOM.DIST(A86,$B$1,$B$2,0),"") -> 
A87: =IF(ROWS(A$9:A87)<=$B$1+1,ROWS(A$9:A87)-1,"") ->  | B87: =IF(ROWS(A$9:A87)<=$B$1+1,_xlfn.BINOM.DIST(A87,$B$1,$B$2,0),"") -> 
A88: =IF(ROWS(A$9:A88)<=$B$1+1,ROWS(A$9:A88)-1,"") ->  | B88: =IF(ROWS(A$9:A88)<=$B$1+1,_xlfn.BINOM.DIST(A88,$B$1,$B$2,0),"") -> 

Sheet B(5)
A1: n | B1: 10
A2: p | B2: 0.4
A3: X | B3: 6
A4: Comparative Operator | B4: <=
A5: Result | B5: =B4&B3 -> <=6
A6: P(x<=3)
A8: X | B8: P(x)
A9: 0
A10: 1
A11: 2
A12: 3
A13: 4
A14: 5
A15: 6
A16: 7
A17: 8
A18: 9
A19: 10
B21: =SUM(B9:B19) -> 0

Sheet B(5an)
A1: n | B1: 10 | D1: ="Binomial Distribution at n = "&B1&", p = "&B2 -> Binomial Distribution at n = 10, p = 0.4
A2: p | B2: 0.4
A3: X | B3: 3
A4: Comparative Operator | B4: <=
A5: Result | B5: =B4&B3 -> <=3
A6: =C8 -> P(x<=3) = 0.3823 | B6: =ROUND(_xlfn.BINOM.DIST(B3,B1,B2,1),4) -> 0.3823
A8: X | B8: P(x) | C8: ="P(x"&B5&") = "&B6 -> P(x<=3) = 0.3823
A9: 0 | B9: =_xlfn.BINOM.DIST(A9,$B$1,$B$2,0) -> 0.0060466176 | C9: =IF(A9<=$B$3,B9,"") -> 0.0060466176
A10: 1 | B10: =_xlfn.BINOM.DIST(A10,$B$1,$B$2,0) -> 0.040310784 | C10: =IF(A10<=$B$3,B10,"") -> 0.040310784
A11: 2 | B11: 0.120932352 | C11: 0.120932352
A12: 3 | B12: 0.214990848 | C12: 0.214990848
A13: 4 | B13: 0.250822656
A14: 5 | B14: 0.2006581248
A15: 6 | B15: 0.111476736
A16: 7 | B16: 0.042467328
A17: 8 | B17: 0.010616832
A18: 9 | B18: 0.001572864
A19: 10 | B19: 0.0001048576
B21: =SUM(B9:B19) -> 1

Sheet P(1)
B1: Poisson Probability Distribution can be used to estimate the number of occurrences over a specified interval of time or space
B2: Properties of a Poisson Experiment:
B3: The probability of an occurrence is the same for any two intervals of equal length
B4: The occurrence or nonoccurrence in any interval is independent of the occurrence or nonoccurrence in any other interval
B5: No upper limit for X: 0,1,2,3… , but as x increases past the mean, the probability decreases and gest quite small.
B6: Mean = Var
B7: Excel function: POISSON.DIST POISSON.DIST(x,mean,cumulative (0 = exact, 1 = cumulative))
B10: x = Number of Web visitors | C10: 7 | D10: per | E10: minutes
B11: Business = | C11: Your Cool Web Site
B12: =B10&" arrive at a rate of "&C10&" per minute at "&C11 -> x = Number of Web visitors arrive at a rate of 7 per minute at Your Cool Web Site
B13: Assumption 1 | C13: Probability is the same for any 1 minute interval
B14: Assumption 2 | C14: Arrival or nonarrival of a web visitor in a 1 minute period is independent of the arrival or nonarrival in any other 1 minute period
B15: Mean | C15: =$C$10 -> 7 | D15: visits | E15: per | F15: 1 | G15: minute
A16: a | B16: x | C16: 0 | D16: visits | E16: per | F16: 1 | G16: minute
B17: Mean
B18: ="P("&C16&" "&D16&" "&E16&" "&F16&" "&G16&")" -> P(0 visits per 1 minute)
B19: P(x) = (mu^x*e^-mu)/X!)
A20: b | B20: x | C20: 2
B21: P(2 or more in 1 minute)
A22: c | B22: x | C22: 1 | D22: =1/2 -> 0.5 | E22: minutes
B23: Mean
B24: P(1 or more in 30 sec.)
A25: d | B25: x | C25: 5
B26: P(5 or more in 1 minute)
B27: x | C27: 4
B28: P(4 or less in 1 minute)
C35: =SUM(C39:C40) -> 0.007295055724
B38: x | C38: p(x)
B39: 0 | C39: =_xlfn.POISSON.DIST(B39,$C$15,0) -> 0.0009118819656
B40: 1 | C40: =_xlfn.POISSON.DIST(B40,$C$15,0) -> 0.006383173759
B41: 2 | C41: 0.02234110816
B42: 3 | C42: 0.05212925236
B43: 4 | C43: 0.09122619164
B44: 5 | C44: 0.1277166683
B45: 6 | C45: 0.1490027797
B46: 7 | C46: 0.1490027797
B47: 8 | C47: 0.1303774322
B48: 9 | C48: 0.1014046695
B49: 10 | C49: 0.07098326865
B50: 11 | C50: 0.04517117096
B51: 12 | C51: 0.02634984973
B52: 13 | C52: 0.01418838062
B53: 14 | C53: 0.007094190311
B54: 15 | C54: 0.003310622145
B55: 16 | C55: 0.001448397188
B56: 17 | C56: 0.0005963988423
B57: 18 | C57: 0.0002319328831
B58: 19 | C58: 8.544895694e-05
B59: 20 | C59: 2.990713493e-05
B60: 21 | C60: 9.969044976e-06
B61: 22 | C61: 3.171968856e-06
B62: 23 | C62: 9.653818258e-07
B63: 24 | C63: 2.815696992e-07
B64: 25 | C64: 7.883951577e-08
B65: 26 | C65: 2.122602348e-08
B66: 27 | C66: 5.503043124e-09
B67: 28 | C67: 1.375760781e-09
B68: 29 | C68: 3.320801885e-10
B69: 30 | C69: 7.748537732e-11

Sheet P(1an)
B1: Poisson Probability Distribution can be used to estimate the number of occurrences over a specified interval of time or space
B2: Properties of a Poisson Experiment:
B3: The probability of an occurrence is the same for any two intervals of equal length
B4: The occurrence or nonoccurrence in any interval is independent of the occurrence or nonoccurrence in any other interval
B5: No upper limit for X: 0,1,2,3… , but as x increases past the mean, the probability decreases and gest quite small.
B6: Mean = Var
B7: Excel function: POISSON.DIST POISSON.DIST(x,mean,cumulative (0 = exact, 1 = cumulative))
B10: x = Number of Web visitors | C10: 7 | D10: per | E10: minutes
B11: Business = | C11: Your Cool Web Site
B12: =B10&" arrive at a rate of "&C10&" per minute at "&C11 -> x = Number of Web visitors arrive at a rate of 7 per minute at Your Cool Web Site
B13: Assumption 1 | C13: Probability is the same for any 1 minute interval
B14: Assumption 2 | C14: Arrival or nonarrival of a web visitor in a 1 minute period is independent of the arrival or nonarrival in any other 1 minute period
B15: Mean | C15: =$C$10 -> 7 | D15: visits | E15: per | F15: 1 | G15: minute
A16: a | B16: x | C16: 0 | D16: visits | E16: per | F16: 1 | G16: minute
B17: Mean | C17: =C15 -> 7
B18: ="P("&C16&" "&D16&" "&E16&" "&F16&" "&G16&")" -> P(0 visits per 1 minute) | C18: =_xlfn.POISSON.DIST(C16,C17,0) -> 0.0009118819656
B19: P(x) = (mu^x*e^-mu)/X!) | C19: =(C17^C16*EXP(1)^-C17)/FACT(C16) -> 0.0009118819656
A20: b | B20: x | C20: 2
B21: P(2 or more in 1 minute) | C21: =1-_xlfn.POISSON.DIST(C20-1,C17,1) -> 0.9927049443
A22: c | B22: x | C22: 1 | D22: =1/2 -> 0.5 | E22: minutes
B23: Mean | C23: =C15*D22 -> 3.5
B24: P(1 or more in 30 sec.) | C24: =1-_xlfn.POISSON.DIST(C22-1,C23,1) -> 0.9698026166
A25: d | B25: x | C25: 5
B26: P(5 or more in 1 minute) | C26: =1-_xlfn.POISSON.DIST(C25-1,C17,1) -> 0.8270083921
B27: x | C27: 4
B28: P(4 or less in 1 minute) | C28: =_xlfn.POISSON.DIST(C27,C17,1) -> 0.1729916079
C35: =SUM(C39:C40) -> 0.007295055724
B38: x | C38: p(x)
B39: 0 | C39: =_xlfn.POISSON.DIST(B39,$C$15,0) -> 0.0009118819656
B40: 1 | C40: =_xlfn.POISSON.DIST(B40,$C$15,0) -> 0.006383173759
B41: 2 | C41: 0.02234110816
B42: 3 | C42: 0.05212925236
B43: 4 | C43: 0.09122619164
B44: 5 | C44: 0.1277166683
B45: 6 | C45: 0.1490027797
B46: 7 | C46: 0.1490027797
B47: 8 | C47: 0.1303774322
B48: 9 | C48: 0.1014046695
B49: 10 | C49: 0.07098326865
B50: 11 | C50: 0.04517117096
B51: 12 | C51: 0.02634984973
B52: 13 | C52: 0.01418838062
B53: 14 | C53: 0.007094190311
B54: 15 | C54: 0.003310622145
B55: 16 | C55: 0.001448397188
B56: 17 | C56: 0.0005963988423
B57: 18 | C57: 0.0002319328831
B58: 19 | C58: 8.544895694e-05
B59: 20 | C59: 2.990713493e-05
B60: 21 | C60: 9.969044976e-06
B61: 22 | C61: 3.171968856e-06
B62: 23 | C62: 9.653818258e-07
B63: 24 | C63: 2.815696992e-07
B64: 25 | C64: 7.883951577e-08
B65: 26 | C65: 2.122602348e-08
B66: 27 | C66: 5.503043124e-09
B67: 28 | C67: 1.375760781e-09
B68: 29 | C68: 3.320801885e-10
B69: 30 | C69: 7.748537732e-11

Sheet H
I21: New Excel 2010 Function:
I22: HYPGEOM.DIST
I23: Swee vieo:
I24: Excel 2010 Statistics #39: HYPGEOM.DIST and Conditional Probabilities New Excel 2010 Function
